Cogmind - Beta 10.2 @@@ ROGUE MODE // 2020.11.05 @ 16:35:03 Player: Nikolayag Result: Destroyed 0B10! Performance ------------- Evolutions (9) 4500 Regions Visited (32) 6400 Robots Destroyed (640) 3200 Value Destroyed (33416) 33416 Prototype IDs (259) 5180 Alien Tech Used (14) 2800 Bonus (135702) 135702 TOTAL SCORE: 191198 Bonus ------- Triggered High Security 3500 High Alert Combat Kills 25522 Follower Combat Kills 54047 Aligned with FarCom 300 Met Data Miner 300 Used Data Conduit 3000 Destroyed Z-Imprinter 1000 Triggered Deep Caves Wall 500 Exposed GOLEM Chamber 500 Found Hidden Lab 3000 Decrypted A0 Command 3000 Used Core Reset Matrix 3000 Scanned by Researcher 1000 Pursued by Intercept 3500 Met Sigix 2000 Escaped with Sigix 5000 Destroyed MAIN.C Guards 500 Met MAIN.C 5000 Destroyed MAIN.C Shell 5000 Destroyed MAIN.C 10000 Met Architect 300 Destroyed A8 300 Destroyed A6 400 Destroyed A2 1000 Destroyed Architect 15000 Win 3000 Friendly Fire -13967 Cogmind --------- Core Integrity 1189/2100 Matter 21/800 Energy 370/380 System Corruption 0% Temperature Cool (10) Movement Hovering (22) Location Tau Ceti IV Orbit Parts ------- > --- POWER (2) -------- Zero-point Reactor Zero-point Reactor > --- PROPULSION (5) --- Combat Linear Gravjet Combat Linear Gravjet Combat Linear Gravjet Combat Linear Gravjet Combat Linear Gravjet > --- UTILITY (16) ----- Lightpack 2.0 Experimental Matter Compressor Zionite Metafield Generator Quantum Capacitor Experimental Phase Shifter Heavy Regenerative Plating Advanced Thermal Defense Suite EM Dispersion Field AEGIS Remote Shield Mobile Assembly Unit > --- WEAPON (2) ------- Enhanced Nova Cannon Point Singularity Launcher > --- INVENTORY (26) --- Zero-point Reactor Energy Well (500) Improved Energy Well (600) Centrium Medium Armor Plating Centrium Heavy Armor Plating Experimental Powered Armor Improved Remote Force Field Spread Laser Graviton Cannon Fusion Bomb Launcher Core Stripper Plasma Lance Sigix Containment Pod Peak State ------------ > --- POWER ------------ Zero-point Reactor Zero-point Reactor > --- PROPULSION ------- Combat Linear Gravjet Combat Linear Gravjet Combat Linear Gravjet Combat Linear Gravjet Combat Linear Gravjet > --- UTILITY ---------- Fusion Compressor Large Storage Unit Lightpack 2.0 Zionite Metafield Generator Experimental Sensor Array Experimental Signal Interpreter Advanced Salvage Targeting Computer Heavy Regenerative Plating Advanced Thermal Defense Suite Improved Remote Force Field System Mapper Deep Network Scanner Deep Network Scanner Quantum Router > --- WEAPON ----------- Sigix Terminator > --- INVENTORY -------- Zero-point Reactor Improved Energy Well Advanced Matter Compressor Antimissile System High-powered Tractor Beam Mobile Assembly Unit GOLEM Unit GOLEM Unit GOLEM Unit GOLEM Unit Transdimensional Reconstructor Integrity Redistributor Subatomic Replicator Spread Laser Compact HERF Cannon Enhanced Nova Cannon Potential Cannon Fusion Bomb Launcher Point Singularity Launcher Core Stripper Plasma Lance Sigix Containment Pod [Rating: 244] Favorites ----------- Power Zero-point Reactor Engine Improved Ion Engine Power Core Light Nuclear Core Reactor Zero-point Reactor Propulsion Combat Linear Gravjet Treads Light Treads Wheel Compact Wheel Hover Unit Combat Linear Gravjet Utility Deep Network Scanner Device Experimental Sensor Array Storage Lightpack 2.0 Processor Advanced Salvage Targeting Computer Hackware Deep Network Scanner Protection Heavy Regenerative Plating Weapon Heavy Mace Energy Gun EM Pulse Gun Energy Cannon Enhanced Nova Cannon Ballistic Gun Enhanced Autogun Ballistic Cannon Graviton Cannon Launcher Fusion Bomb Launcher Special Weapon Improved Plasma Cutter Impact Weapon Heavy Mace Slashing Weapon Makeshift Axe Piercing Weapon Force Lance Build | -11 -10 -10 -10 -9 -8 -7 -7 -7 -7 -6 -6 -6 -6 -6 -6 -5 -5 -5 -5 -5 -4 -4 -4 -4 -3 -3 -2 -2 -2 -1 -1 -1 ------- Run | Scr Mat Min Exi Min Mat Fac Low Low Dat Pro Fac Low Low Zio Dee Pro Fac Upp Upp Zhi Pro Fac Arm Lab Res Tes Res Qua Sec Acc Com Ac0 Slots Evolved 18 | . . . . . 4 2 . . . . 2 . . . . . 2 . . . . 2 . . 2 . 2 . . 2 . . Power 1 | . . . . . . . . . . . . . . . . . . . . . . . . . 1 . . . . . . . Propulsion 3 | . . . . . 1 . . . . . . . . . . . . . . . . 1 . . . . . . . 1 . . Utility 14 | . . . . . 3 2 . . . . 2 . . . . . 2 . . . . 1 . . 1 . 2 . . 1 . . Weapon . | . . . . . . . . . . . . . . . . . . . . . . . . . . . . . . . . . Parts Attached 496 | 7 21 7 2 5 32 17 3 8 5 1 8 6 4 10 42 2 12 . 1 3 . 6 9 14 21 10 35 34 29 38 82 22 Power 29 | 1 3 1 . . 1 1 . 1 . . . . . . 3 . 1 . . . . . 2 . 3 . 5 3 . 2 2 . Engine 6 | 1 2 1 . . 1 1 . . . . . . . . . . . . . . . . . . . . . . . . . . Core 4 | . 1 . . . . . . 1 . . . . . . 1 . 1 . . . . . . . . . . . . . . . Reactor 19 | . . . . . . . . . . . . . . . 2 . . . . . . . 2 . 3 . 5 3 . 2 2 . Propulsion 44 | 2 3 4 1 1 8 2 . . 1 . 3 . . . 3 . 5 . . . . 1 . . 1 . . 1 1 1 5 1 Treads 11 | 1 2 3 . 1 4 . . . . . . . . . . . . . . . . . . . . . . . . . . . Leg . | . . . . . . . . . . . . . . . . . . . . . . . . . . . . . . . . . Wheel 5 | 1 1 1 1 . 1 . . . . . . . . . . . . . . . . . . . . . . . . . . . Hover 28 | . . . . . 3 2 . . 1 . 3 . . . 3 . 5 . . . . 1 . . 1 . . 1 1 1 5 1 Flight . | . . . . . . . . . . . . . . . . . . . . . . . . . . . . . . . . . Utility 210 | 2 2 . 1 . 9 5 2 2 3 1 5 2 4 5 20 . 4 . 1 3 . 5 6 10 15 9 10 9 11 4 46 14 Device 127 | . . . . . 2 1 . 1 . 1 1 2 4 3 9 . 2 . . 1 . 2 5 7 13 7 10 7 10 4 27 8 Storage 44 | 2 2 . 1 . 1 . 1 . . . 1 . . 2 10 . 1 . 1 2 . 1 1 1 . 2 . 2 . . 11 2 Processor 6 | . . . . . . 2 . . . . . . . . . . 1 . . . . 1 . 1 . . . . . . 1 . Hackware 9 | . . . . . 1 2 1 . 1 . 3 . . . . . . . . . . . . . 1 . . . . . . . Protection 24 | . . . . . 5 . . 1 2 . . . . . 1 . . . . . . 1 . 1 1 . . . 1 . 7 4 Artifact . | . . . . . . . . . . . . . . . . . . . . . . . . . . . . . . . . . Weapon 213 | 2 13 2 . 4 14 9 1 5 1 . . 4 . 5 16 2 2 . . . . . 1 4 2 1 20 21 17 31 29 7 Energy Gun 42 | 2 5 2 . 2 . . . . . . . . . . 2 . . . . . . . . 1 1 . 4 4 4 9 6 . Energy Cannon 44 | . 3 . . . 2 . . . . . . . . 2 4 . . . . . . . 1 2 1 . 8 6 3 1 9 2 Ballistic Gun 25 | . 2 . . . 6 4 1 1 . . . 2 . 1 4 1 2 . . . . . . . . . . . 1 . . . Ballistic Cannon 3 | . . . . . . . . . . . . . . . . . . . . . . . . . . . . . . . 2 1 Launcher 60 | . . . . 2 3 2 . 2 . . . . . . . 1 . . . . . . . . . 1 6 9 7 17 7 3 Special Weapon 5 | . 1 . . . . . . . . . . 1 . 1 2 . . . . . . . . . . . . . . . . . Impact Weapon 14 | . . . . . . 3 . 2 . . . . . 1 2 . . . . . . . . 1 . . 1 1 . 1 2 . Slashing Weapon 9 | . 2 . . . 3 . . . 1 . . 1 . . 2 . . . . . . . . . . . . . . . . . Piercing Weapon 11 | . . . . . . . . . . . . . . . . . . . . . . . . . . . 1 1 2 3 3 1 Special Melee Weapon . | . . . . . . . . . . . . . . . . . . . . . . . . . . . . . . . . . Unidentified Prototypes 41 | . . . . . 1 1 . . 1 . 2 . . . 9 . . . . 1 . . 1 3 2 2 . 1 2 1 14 . Parts Lost 23 | . 6 1 . . 3 2 . 1 . . . . . . 1 . . . . . . . . . . . 2 . . 1 2 4 Power 4 | . 1 . . . . 1 . 1 . . . . . . . . . . . . . . . . . . 1 . . . . . Propulsion 5 | . 2 . . . 2 1 . . . . . . . . . . . . . . . . . . . . . . . . . . Utility 7 | . . . . . 1 . . . . . . . . . . . . . . . . . . . . . 1 . . 1 2 2 Weapon 7 | . 3 1 . . . . . . . . . . . . 1 . . . . . . . . . . . . . . . . 2 Highest Loss Streak 3 | . 3 1 . . 1 1 . 1 . . . . . . 1 . . . . . . . . . . . 1 . . 1 1 2 Average Slot Usage (%) 88 | . 96 95 100 100 87 91 92 91 76 76 80 85 86 92 87 93 89 88 88 87 88 93 93 82 83 84 85 86 85 90 87 78 Engine 2 | . 5 13 14 14 9 7 7 1 . . . . . . . . . . . . . . . . . . . . . . . . Core 1 | . 8 . . . . . . 5 7 7 6 6 6 6 1 . 1 5 5 5 5 5 . . . . . . . . . . Reactor 4 | . . . . . . . . . . . . . . . 3 6 3 . . . . . 4 5 9 9 7 5 4 7 8 8 Treads 3 | . 17 25 14 27 17 . . . . . . . . . . . . . . . . . . . . . . . . . . . Wheel 1 | . 10 1 13 . 7 . . . . . . . . . . . . . . . . . . . . . . . . . . . Hover 15 | . . . . . 1 22 23 23 19 15 15 20 20 20 20 20 16 17 17 17 17 21 21 21 19 19 17 17 17 19 19 20 Device 11 | . . . . . 7 6 7 6 . 7 6 6 6 5 6 . 5 5 5 4 5 4 4 9 8 8 16 15 16 19 24 25 Storage 14 | . 28 28 28 28 9 7 8 15 15 15 13 13 13 20 15 33 29 29 29 29 29 30 30 8 4 4 4 7 8 8 11 9 Processor 5 | . . . . . . 6 7 7 7 7 6 6 6 6 4 . 2 . . . . 5 5 9 9 9 8 8 8 8 7 1 Hackware 12 | . . . . . 8 23 21 15 11 15 24 20 20 20 20 20 17 17 17 17 17 15 15 15 19 19 17 17 17 16 5 . Protection 2 | . . . . . 10 . . . 7 . . . . . . . . . . . . . . 1 3 4 4 4 4 4 5 7 Energy Gun 3 | . 9 25 28 27 1 . . . . . . . . . . . . . . . . . . 2 . . 1 . . 1 . . Energy Cannon 1 | . 5 . . . 1 . . . . . . . . . 1 . . . . . . . 4 2 3 2 1 . . . 3 3 Ballistic Gun 1 | . 5 . . . 10 8 8 9 . . . 6 6 5 4 5 4 5 5 5 5 5 . . . . . . . . . . Impact Weapon 1 | . . . . . . 4 5 3 . . . . . . . 6 5 5 5 5 5 5 5 4 4 4 . 1 . . . . Slashing Weapon 1 | . 4 . . . 4 . . . 7 7 6 4 6 5 4 . . . . . . . . . . . . . . . . . Naked Turns . | . . . . . . . . . . . . . . . . . . . . . . . . . . . . . . . . . Heaviest Build 161 | 14 49 51 59 60 25 20 25 30 26 24 43 44 44 64 80 80 97 94 94 110 94 108 124 117 102 97 113 124 131 128 144 161 Greatest Support 160 | 16 40 40 40 40 44 27 27 27 39 39 66 66 66 66 78 78 96 96 96 96 96 128 128 128 128 128 128 128 128 160 160 160 Greatest Overweight (x) 17 | 1 16 2 3 3 1 . . 1 . . . . . . 17 1 2 1 . 1 . . . 1 . . . . 1 . 1 1 Average Overweight (x) . | . 1 1 2 1 . . . . . . . . . . . . . . . . . . . . . . . . . . . . Largest Inventory Capacity 54 | 8 16 16 18 18 38 24 28 28 28 28 30 30 30 42 46 46 48 48 48 50 48 54 54 54 30 24 24 30 32 32 32 26 Average Capacity 28 | 6 13 16 17 18 24 24 24 28 28 28 29 30 30 36 31 46 47 48 48 48 48 53 53 27 24 24 24 29 31 32 28 26 Most Carried 54 | 6 16 16 18 18 24 24 27 27 28 28 30 30 30 34 46 46 48 48 48 49 48 54 54 54 24 24 24 30 32 32 32 24 Average Carried 25 | 3 10 15 16 18 21 23 24 26 26 28 25 28 28 31 28 46 46 48 48 48 48 51 52 20 21 23 22 28 30 30 26 18 Final Capacity 54 | 8 16 16 18 18 24 24 28 28 28 28 30 30 30 30 46 46 48 48 48 48 48 54 54 30 24 24 24 30 32 32 32 26 Final Carried 54 | 6 16 16 18 18 24 24 27 26 28 28 28 28 28 30 46 46 48 48 48 48 48 54 54 21 22 24 22 30 32 32 32 21 Class Distribution -------------------- 56% | Wizard-Mutant 14% | Mutant 13% | Alien-Mutant 3% | Hacker-Mutant 3% | Alien-Sprinter Dominant Class ---------------- Mutant | -10/Materials Mutant | -10/Mines Mutant | -10/Exiles Mutant | -9/Mines Scavenger-Mutant | -8/Materials Hacker-Mutant | -7/Factory Hacker-Mutant | -7/Lower Caves Hauler-Mutant | -7/Lower Caves Hauler-Mutant | -7/Data Miner Hacker-Mutant | -6/Proximity Caves Wizard-Mutant | -6/Factory Wizard-Mutant | -6/Lower Caves Wizard-Mutant | -6/Lower Caves Wizard-Mutant | -6/Zion Wizard-Mutant | -6/Deep Caves Wizard-Mutant | -5/Proximity Caves Wizard-Mutant | -5/Factory Wizard-Mutant | -5/Upper Caves Wizard-Mutant | -5/Upper Caves Wizard-Mutant | -5/Zhirov Wizard-Mutant | -4/Proximity Caves Wizard-Mutant | -4/Factory Wizard-Mutant | -4/Armory Wizard-Mutant | -4/Lab Wizard-Mutant | -3/Research Wizard-Mutant | -3/Testing Wizard-Mutant | -2/Research Wizard-Mutant | -2/Quarantine Wizard-Mutant | -2/Section 7 Wizard-Mutant | -1/Access Alien-Mutant | -1/Command Alien-Sprinter | -1/Access_0 Resources | -11 -10 -10 -10 -9 -8 -7 -7 -7 -7 -6 -6 -6 -6 -6 -6 -5 -5 -5 -5 -5 -4 -4 -4 -4 -3 -3 -2 -2 -2 -1 -1 -1 ----------- Run | Scr Mat Min Exi Min Mat Fac Low Low Dat Pro Fac Low Low Zio Dee Pro Fac Upp Upp Zhi Pro Fac Arm Lab Res Tes Res Qua Sec Acc Com Ac0 Matter Collected 19026 | 266 268 65 . 79 556 283 211 68 32 33 68 102 164 41 1220 . 244 . 18 44 . 78 . 797 684 576 985 1542 2006 2052 5598 946 Remotely 4189 | . . . . . . . . . . . . . . . . . . . . . . . . . . . . . . 1955 2234 . Salvage Created 20748 | 117 1051 326 . 199 1404 328 70 99 30 . 180 25 . . 1910 . 77 . 138 228 . 132 . 720 595 776 1194 2360 2628 2205 3366 590 Parts 668 | 6 70 14 . 12 72 16 . 6 5 . 5 . . . 21 . 3 . 5 . . . . 6 19 25 46 69 71 68 102 27 Haulers Intercepted 10 | . 2 . . . 3 . . . . . 1 . . . . . . . . . . . . . 1 1 . . . 2 . . Recyclers Shooed 10 | . 1 2 . . 1 . . . . . . . . . . . . . . . . . . . 1 1 . . . 1 3 . Parts Field Recycled . | . . . . . . . . . . . . . . . . . . . . . . . . . . . . . . . . . Retrieved Matter . | . . . . . . . . . . . . . . . . . . . . . . . . . . . . . . . . . Parts Self-Destructed 75 | . . . . . . . . 3 . . . . 18 . . . . 9 25 . 20 . . . . . . . . . . . Prevented 5 | . . . . . . . . . . . . 2 . . . 2 . . 1 . . . . . . . . . . . . . Kills | -11 -10 -10 -10 -9 -8 -7 -7 -7 -7 -6 -6 -6 -6 -6 -6 -5 -5 -5 -5 -5 -4 -4 -4 -4 -3 -3 -2 -2 -2 -1 -1 -1 ------- Run | Scr Mat Min Exi Min Mat Fac Low Low Dat Pro Fac Low Low Zio Dee Pro Fac Upp Upp Zhi Pro Fac Arm Lab Res Tes Res Qua Sec Acc Com Ac0 Combat Hostiles Destroyed 460 | . 17 4 . 6 29 6 1 7 . . 1 . . . 18 1 . . 2 . . . . . 3 8 20 32 48 21 223 13 Melee 5 | . . . . . . 1 . . . . 1 . . . . . . . 1 . . . . . . . . . . . . 2 Guns 30 | . 9 2 . 1 9 . 1 . . . . . . . 7 . . . 1 . . . . . . . . . . . . . Cannons 35 | . 6 . . . 5 . . . . . . . . . 8 . . . . . . . . . 3 2 1 . . . 8 2 AOE 384 | . 2 2 . 5 15 5 . 7 . . . . . . . 1 . . . . . . . . . 6 19 32 48 21 213 8 Classes Destroyed 28 | 2 6 1 . . 1 1 . . . . . 1 . . 3 . . . 1 . . . . . 1 2 3 3 1 . 2 . Worker 22 | . 1 1 . 1 . . . . . . . . . . . . . . . . . . . . 1 1 . 1 . 8 8 . Builder 21 | . 2 1 . . 1 . . . . . . . . . . . . . . . . . . . 5 . . 1 . 11 . . Tunneler 6 | 2 . . . 1 . . . . . . . . . . . . . . . . . . . . . . 1 . . 2 . . Hauler 10 | . 2 . . . 3 . . . . . 1 . . . . . . . . . . . . . 1 1 . . . 2 . . Recycler 19 | 1 1 2 . . 2 . . . . . . . . . . . . . . . . 1 . . 2 2 . . . 2 6 . Carrier 17 | . . . . . . . . . . . . . . . . . . . . . . . . . . . . 1 1 1 14 . Minesweeper 2 | . . . . . . . . . . . . 1 . . . . . . 1 . . . . . . . . . . . . . Mechanic 26 | . . . . . . . . . . . . . . . . . . . . . . . . . . . 2 5 10 7 2 . Operator 12 | . 3 . . . 2 2 . . . . . . . . . . . . . . . . . . . 1 1 1 . . 2 . Watcher 16 | . 2 . . . 4 1 . . . . . . . . . . 3 . . . . . . . . . 1 1 1 . 3 . Swarmer 51 | . . . . . 6 . . 6 . . . . . . . . . . . . . . . . 2 . . . . 4 33 . Saboteur 25 | . . . . . . . . . . . . . . . . . . . . . . . . . . 1 1 . 7 1 15 . Grunt 175 | . 17 2 . 6 20 4 . 1 . . 1 . . . . 1 . . 1 . . . . . . 3 6 17 28 8 60 . Brawler 25 | . . . . . . . . . . . . . . . . . . . . . . . . . . . 1 3 2 3 16 . Duelist 15 | . . . . . . . . . . . . . . . . . . . . . . . . . . . . 1 1 . 13 . Protector 15 | . . . . . . . . . . . . . . . . . . . . . . . . . . 2 3 1 2 1 6 . Researcher 2 | . . . . . . . . . . . . . . . . . . . . . . . . . . . . 2 . . . . Sentry 7 | . . 2 . . 3 . 1 1 . . . . . . . . . . . . . . . . . . . . . . . . Demolisher 6 | . . . . . . . . . . . . . . . . . . . . . . . . . . . . . . . 6 . Specialist 6 | . . . . . . . . . . . . . . . . . . . . . . . . . . . . . . . 6 . Hunter 38 | . . . . . . 2 . . . . . . . . . . . . . . . . . . . . 1 4 2 . 29 . Programmer 59 | . . . . . . . . . . . . . . . . . . . 1 . . . . . . 2 7 6 3 4 36 . Behemoth 1 | . . . . . . . . . . . . . . . . . . . . . . . . . 1 . . . . . . . M Guard 2 | . . . . . . . . . . . . . . . . . . . . . . . . . . . . . . . 2 . Enhanced Grunt 8 | . . . . . . . . . . . . . . . . . . . . . . . . . . . . . . . . 8 Enhanced Hunter 2 | . . . . . . . . . . . . . . . . . . . . . . . . . . . . . . . . 2 Enhanced Programmer 3 | . . . . . . . . . . . . . . . . . . . . . . . . . . . . . . . . 3 Investigator 1 | . . . . . . . . . . . . . . . . . . . . . . . . . . . . 1 . . . . Striker 2 | . . . . . . . . . . . . . . . . . . . . . . . . . . . 1 . . . 1 . Executioner 3 | . . . . . . . . . . . . . . . . . . . . . . . . . . . . . 3 . . . Z-Light 1 | . . . . . . . . . . . . . . . 1 . . . . . . . . . . . . . . . . . Assembled 8 | . . . . . . . . . . . . . . . 2 . . . . . . . . . . . . . . . 6 . Golem 32 | . . . . . . . . . . . . . . . 14 . . . . . . . . 6 . . 1 1 . 8 2 . Best Kill Streak 182 | 3 3 2 . 3 7 4 1 4 1 . 1 1 . . 4 1 1 . 1 . . 1 . . 3 6 11 15 14 7 182 3 Combat Bots Only 166 | . 3 2 . 3 5 4 1 4 . . 1 . . . 4 1 . . 1 . . . . . 2 6 9 12 11 4 166 3 Max Kills in Single Turn 183 | 1 1 2 . 1 2 2 1 3 1 . 1 1 . . 2 1 1 . 1 . . 1 . 1 1 4 3 4 5 6 183 2 Gunslinging . | . . . . . . . . . . . . . . . . . . . . . . . . . . . . . . . . . Exploded 166 | . 1 2 . 1 2 2 . 2 . . . . . . . 1 . . . . . . . . . 4 3 4 5 4 166 2 Melee 1 | . . . . . . 1 . . . . 1 . . . . . . . 1 . . . . . . . . . . . . 1 Uniques/NPCs Destroyed 8 | . . . . . . . . . 1 . . . . . 1 . . . . . . . . 1 . . . . . . 2 3 Data Miner (-7/Data Miner) Z-Imprinter (-6/Deep Caves) A5 (-4/Lab) MAIN.C Shell (-1/Command) MAIN.C (-1/Command) A8 (-1/Access_0) Architect (-1/Access_0) A2 (-1/Access_0) Combat | -11 -10 -10 -10 -9 -8 -7 -7 -7 -7 -6 -6 -6 -6 -6 -6 -5 -5 -5 -5 -5 -4 -4 -4 -4 -3 -3 -2 -2 -2 -1 -1 -1 -------- Run | Scr Mat Min Exi Min Mat Fac Low Low Dat Pro Fac Low Low Zio Dee Pro Fac Upp Upp Zhi Pro Fac Arm Lab Res Tes Res Qua Sec Acc Com Ac0 Damage Taken 13543 | . 852 296 . 93 670 153 52 47 142 . . 47 37 . 603 129 72 18 76 . . 46 . 26 90 325 1136 978 1661 1179 1516 3299 Core 994 | . 99 21 . 10 28 . . . 142 . . . . . . . . . 38 . . . . . . 7 45 81 125 30 107 261 Absorbed by Shields 6918 | . . . . . . . . . . . . . . . . . . . . . . . . 25 88 272 868 640 1151 542 1265 2067 Core Remaining (%) 84 | 100 . . . 48 94 . . . . 79 . . . . . 100 . . . . 96 . . 94 . 99 . . 80 . . 56 Volleys Fired 1462 | 7 76 26 . 13 81 16 2 7 . . . 14 . 17 124 8 . . 3 . . 7 . 187 29 21 76 93 95 169 327 64 Largest 2 | 2 2 2 . 2 2 2 2 1 . . . 2 . 2 2 1 . . 1 . . 1 . 1 1 1 1 1 1 1 2 1 Hottest 200 | 80 120 80 . 80 88 50 50 36 . . . 50 . 115 110 36 . . 33 . . 33 . 120 120 120 120 120 120 120 200 200 Shots Fired 1599 | 14 130 31 . 21 120 22 4 7 . . . 25 . 18 126 8 . . 3 . . 7 . 187 29 21 77 93 95 169 328 64 Gun 794 | 14 91 31 . 16 83 16 4 . . . . 22 . 1 34 . . . 3 . . 7 . 164 2 . 28 38 38 124 78 . Cannon 516 | . 36 . . . 24 . . . . . . . . 17 85 . . . . . . . . 23 27 17 22 18 5 2 194 46 Launcher 276 | . . . . 5 13 6 . 7 . . . . . . . 8 . . . . . . . . . 4 27 37 52 43 56 18 Special 13 | . 3 . . . . . . . . . . 3 . . 7 . . . . . . . . . . . . . . . . . Kinetic 204 | . 28 . . . 83 16 4 . . . . 22 . 1 34 . . . 3 . . 7 . . . . . . . . . 6 Thermal 908 | 7 39 . . . . . . . . . . 3 . 17 88 . . . . . . . . 187 29 17 50 48 43 126 229 25 Explosive 275 | . . . . 5 13 6 . 7 . . . . . . . 8 . . . . . . . . . 4 27 37 52 43 55 18 Electromagnetic 212 | 7 63 31 . 16 24 . . . . . . . . . 4 . . . . . . . . . . . . 8 . . 44 15 Robot Hit Streak 48 | 4 18 5 . 5 10 4 2 1 . . . 2 . . 20 . . . 1 . . . . 48 5 3 8 7 8 28 14 6 Robot Miss Streak 8 | 2 3 4 . 3 3 3 1 1 . . . 8 . . 5 . . . 1 . . . . 4 1 3 6 7 6 6 4 3 Penetration Max 1 | . . . . . . . . . . . . . . . 1 . . . . . . . . . . . . . . . . . Secondary Targets 2 | . . . . . 1 1 . . . . . . . . . . . . . . . . . . . . . . . . . . Max Gunslinging Chain 1 | . . . . . 1 1 . . . . . . . . . . . . . . . . . . . . . . . . . . Capacitor 109 | . . . . . . . . . . . . . . . . . . . . . . . . 6 . . . 7 . . 79 17 Shots Hit Robots 1064 | 5 88 16 . 10 85 17 3 1 1 . 2 9 . . 95 . 3 . 4 3 . 1 1 164 22 13 36 55 37 173 176 44 Core Hits 2052 | 4 41 13 . 16 73 14 1 11 1 . 2 5 . . 73 6 1 . 2 1 . . . 574 10 38 88 181 237 241 353 66 Critical Hits 40 | . . . . . . . . . . . . 1 . . 12 . . . 1 . . . . . . . . 1 . 1 18 6 Critical Kills 14 | . . . . . . . . . . . . . . . 8 . . . 1 . . . . . . . . 1 . . 3 1 Critical Parts Destroyed 20 | . . . . . . . . . . . . 1 . . 4 . . . . . . . . . . . . . . 1 13 1 Melee Attacks 451 | . 12 . . . 24 24 3 1 14 5 5 7 3 5 31 . 26 . 6 3 1 19 11 53 34 7 39 24 13 38 21 22 Kinetic 18 | . . . . . . . . . . . . . . . . . . . . . . . . . . . . . . 7 11 . Impact 218 | . . . . . . 19 3 1 . . . . . 1 29 . 26 . 6 3 1 19 11 53 34 7 5 . . . . . Slashing 81 | . 12 . . . 24 5 . . 14 5 5 7 3 4 2 . . . . . . . . . . . . . . . . . Piercing 134 | . . . . . . . . . . . . . . . . . . . . . . . . . . . 34 24 13 31 10 22 Sneak Attacks 58 | . 5 . . . 1 1 . . 1 . 1 1 . . . . . . 1 . . 1 . . 5 4 4 7 2 20 4 . Combat Hostiles . | . . . . . . . . . . . . . . . . . . . . . . . . . . . . . . . . . Follow-up Attacks . | . . . . . . . . . . . . . . . . . . . . . . . . . . . . . . . . . Damage Inflicted 261184 | 84 1660 424 . 555 3987 1076 57 616 185 . 260 387 . . 2658 264 123 . 242 360 . 140 31 3360 1212 3581 8156 14578 19512 16183 172929 8564 Guns 10340 | 84 686 217 . 153 963 176 53 . . . . 193 . . 379 . . . 49 . . . . 3317 30 . 321 396 436 1928 959 . Cannons 13410 | . 438 . . . 611 . . . . . . . . . 1324 . . . . . . . . 43 520 473 223 293 33 . 7093 2359 Explosions 225784 | . 100 178 . 350 2289 593 . 616 . . . . . . . 264 . . . . . . . . . 2696 6963 12799 18746 11201 163634 5355 Melee 11455 | . 436 . . . 124 307 . . 185 . 260 183 . . 856 . 123 . 193 360 . 140 31 . 662 412 649 1090 297 3054 1243 850 Ramming 85 | . . 29 . 52 . . 4 . . . . . . . . . . . . . . . . . . . . . . . . . Kinetic 3019 | . 181 . . . 963 176 53 . . . . 193 . . 379 . . . 49 . . . . . . . . . . 382 424 219 Thermal 178425 | 21 538 178 . . 230 . . . . . . 11 . . 1315 . . . . . . . . 3360 550 473 544 431 469 1928 163526 4851 Explosive 65746 | . . . . 350 2059 593 . 616 . . . . . . . 264 . . . . . . . . . 2696 6963 12799 18746 11201 7039 2420 Electromagnetic 3260 | 63 505 217 . 153 611 . . . . . . . . . 108 . . . . . . . . . . . . 258 . . 1121 224 Impact 2925 | . . . . . . 148 . . . . . . . . 856 . 123 . 193 360 . 140 31 . 662 412 . . . . . . Slashing 1347 | . 436 . . . 124 159 . . 185 . 260 183 . . . . . . . . . . . . . . . . . . . . Piercing 6377 | . . . . . . . . . . . . . . . . . . . . . . . . . . . 649 1090 297 2672 819 850 Highest Corruption 7 | . 2 2 2 2 1 . . . . . . . . . . . . . . . . . . . . . 5 7 7 . . . Average Corruption 3 | . 1 2 2 2 1 . . . . . . . . . . . . . . . . . . . . . 4 5 7 . . . Corruption Purged . | . . . . . . . . . . . . . . . . . . . . . . . . . . . . . . . . . Effects 142 | . 7 19 4 8 1 . . . . . . . . . . . . . . . . . . . . . 23 74 6 . . . Message Errors 43 | . 3 6 4 5 . . . . . . . . . . . . . . . . . . . . . . 5 19 1 . . . Matter Fused 21 | . . . . . . . . . . . . . . . . . . . . . . . . . . . 7 14 . . . . Heat Flow Errors 17 | . . 7 . . . . . . . . . . . . . . . . . . . . . . . . 2 7 1 . . . Energy Discharges 19 | . 1 4 . 2 . . . . . . . . . . . . . . . . . . . . . . 3 8 1 . . . Parts Rejected 2 | . . . . . . . . . . . . . . . . . . . . . . . . . . . . 1 1 . . . Data Loss (minor) 17 | . 1 1 . 1 1 . . . . . . . . . . . . . . . . . . . . . 2 10 1 . . . Data Loss (major) 2 | . . . . . . . . . . . . . . . . . . . . . . . . . . . . 2 . . . . Misfires 3 | . . . . . . . . . . . . . . . . . . . . . . . . . . . 2 1 . . . . Targeting Errors 16 | . 2 1 . . . . . . . . . . . . . . . . . . . . . . . . 1 11 1 . . . Weapon Failures 2 | . . . . . . . . . . . . . . . . . . . . . . . . . . . 1 1 . . . . Overload Shots 5 | . . . . . . . . . . . . . . 4 1 . . . . . . . . . . . . . . . . . Overflow Damage 25018 | . 71 22 . . 186 99 1 73 . . . 97 . . 134 . 27 . 103 209 . 110 . . 390 286 296 691 733 1240 20149 101 Projectiles 1501 | . . . . . 3 . . . . . . . . . 43 . . . . . . . . . 85 26 . 31 . . 1313 . Explosions 20729 | . . 22 . . 152 4 . 73 . . . . . . . . . . . . . . . . . 23 220 552 656 539 18387 101 Melee 2788 | . 71 . . . 31 95 1 . . . . 97 . . 91 . 27 . 103 209 . 110 . . 305 237 76 108 77 701 449 . Knockbacks 20 | . . . . . . 2 . . . . . . . . 7 . . . 2 . . 1 . . 4 2 . . . . . 2 Impact 17 | . . . . . . 2 . . . . . . . . 7 . . . 2 . . 1 . . 3 2 . . . . . . Kinetic 2 | . . . . . . . . . . . . . . . . . . . . . . . . . . . . . . . . 2 Secondary 1 | . . . . . . . . . . . . . . . . . . . . . . . . . 1 . . . . . . . Self-Inflicted Damage 836 | . 33 43 . . 41 . 2 5 . . . . . . . 54 . . . . . . . . . 30 54 . 67 171 139 197 Shots 21 | . 1 1 . . 1 . . 1 . . . . . . . 1 . . . . . . . . . 1 1 . 2 3 4 5 Rammed 14 | . . 5 . 6 1 . 1 1 . . . . . . . . . . . . . . . . . . . . . . . . Targets Rammed 16 | . . 7 . 6 1 . 1 1 . . . . . . . . . . . . . . . . . . . . . . . . Kicked . | . . . . . . . . . . . . . . . . . . . . . . . . . . . . . . . . . Crushed 2 | . . 2 . . . . . . . . . . . . . . . . . . . . . . . . . . . . . . Highest Temperature 380 | 72 266 262 . 75 128 3 21 . . . . 1 . 54 40 52 . . 4 . . 11 4 318 240 240 253 280 322 242 380 208 Average Temperature 73 | 33 82 88 . 27 46 3 12 . . . . 1 . 22 11 25 . . 4 . . 8 4 98 80 78 56 64 110 95 70 60 Received Heat Transfer 1896 | . 447 96 . 51 270 9 18 . 18 . . . 15 . 162 36 . 9 36 . . 9 . 3 3 26 54 109 123 91 75 236 Effects 2 | . 1 . . . . . . . . . . . . . . . . . . . . . . . 1 . . . . . . . Energy Bleed 1 | . . . . . . . . . . . . . . . . . . . . . . . . . 1 . . . . . . . Interference 1 | . 1 . . . . . . . . . . . . . . . . . . . . . . . . . . . . . . . Siege Activations . | . . . . . . . . . . . . . . . . . . . . . . . . . . . . . . . . . Robots Corrupted 4 | . . . . . . . . . . . . . . . . . . . . . . . . . . . . 1 . . 2 1 Combat Hostiles 3 | . . . . . . . . . . . . . . . . . . . . . . . . . . . . . . . 2 1 Parts Fried 38 | 1 1 . . . 2 . . . . . . . . . 2 . 5 . . . . 2 . . 11 3 . 1 . . 7 3 Impact Corruptions 43 | . . . . . . . 1 . . . . . . . 5 . 2 . 4 9 . 3 . . 13 6 . . . . . . Robots Melted 1 | . . . . . . . . . . . . . . . . . . . . . . . . . . . . . . 1 . . Combat Hostiles . | . . . . . . . . . . . . . . . . . . . . . . . . . . . . . . . . . Parts Melted 9 | . 1 . . . . . . . . . . . . . . . . . . . . . . . . 1 . 1 . . 6 . Heat Transferred 23900 | 50 975 200 . . 300 . . . . . . 37 . . 1798 . . . . . . . . 2316 466 407 510 439 488 2627 10658 2629 Parts Sabotaged . | . . . . . . . . . . . . . . . . . . . . . . . . . . . . . . . . . Parts Stolen . | . . . . . . . . . . . . . . . . . . . . . . . . . . . . . . . . . Parts Stripped . | . . . . . . . . . . . . . . . . . . . . . . . . . . . . . . . . . Power Chain Reactions 7 | . 2 2 . . 3 . . . . . . . . . . . . . . . . . . . . . . . . . . . Missiles Intercepted 11 | . . . . . . . . . . . . . . . . . . . . . . . . . . . . . . . 11 . Alert | -11 -10 -10 -10 -9 -8 -7 -7 -7 -7 -6 -6 -6 -6 -6 -6 -5 -5 -5 -5 -5 -4 -4 -4 -4 -3 -3 -2 -2 -2 -1 -1 -1 ------- Run | Scr Mat Min Exi Min Mat Fac Low Low Dat Pro Fac Low Low Zio Dee Pro Fac Upp Upp Zhi Pro Fac Arm Lab Res Tes Res Qua Sec Acc Com Ac0 Peak Influence 19881 | 15 247 154 . 145 845 1140 . . . . 69 . . . . . 702 . . . . 430 186 . 6406 8272 12321 14920 17066 19881 14330 . Initial 12723 | . 9 69 . . 1 353 . . . . . . . . . . 12 . . . . 129 73 . . 3603 4653 6930 8392 10239 12723 . Average 5591 | 3 137 28 . 42 391 657 . . . . 37 . . . . . 146 . . . . 165 120 . 2707 5857 9197 12188 14765 15888 13254 . Maximum Alert Level 5 | . 1 . . . 3 4 . . . . . . . . . . 3 . . . . 2 . . 5 5 5 5 5 5 5 . Low Security (%) 28 | 100 81 100 . 100 25 . . . . . 100 . . . . . 71 . . . . 75 100 . 6 . . . . . . . Level 1 4 | . 18 . . . 20 16 . . . . . . . . . . 21 . . . . 16 . . . . . . . . . . Level 2 5 | . . . . . 38 50 . . . . . . . . . . 7 . . . . 8 . . 10 . . . . . . . Level 3 2 | . . . . . 16 19 . . . . . . . . . . . . . . . . . . 14 . . . . . . . Level 4 1 | . . . . . . 13 . . . . . . . . . . . . . . . . . . 12 . . . . . . . Level 5 26 | . . . . . . . . . . . . . . . . . . . . . . . . . 2 33 15 23 3 17 97 . High Security 31 | . . . . . . . . . . . . . . . . . . . . . . . . . 52 66 84 76 96 82 2 . Max Security . | . . . . . . . . . . . . . . . . . . . . . . . . . . . . . . . . . Sterilizations 5 | . . . . . . . . . . . . . . . . . . . . . . . . . 1 . 1 1 1 1 . . Squads Dispatched 241 | . 5 . . . 8 11 . . . . . . . . . . 8 . . . . 1 1 . 31 29 28 37 37 33 12 . Investigation 15 | . 2 . . . 2 4 . . . . . . . . . . 4 . . . . . . . . . 1 . . 1 1 . Extermination 8 | . . . . . . 1 . . . . . . . . . . 1 . . . . 1 1 . 2 . . 1 . . 1 . Reinforcement 28 | . 3 . . . 4 5 . . . . . . . . . . 1 . . . . . . . 2 3 . 6 1 2 1 . Assault 170 | . . . . . 2 . . . . . . . . . . . . . . . . . . . 26 24 24 26 32 27 9 . Garrison 4 | . . . . . . 1 . . . . . . . . . . . . . . . . . . . . . 3 . . . . Intercept 16 | . . . . . . . . . . . . . . . . . 2 . . . . . . . 1 2 3 1 4 3 . . Construction Impeded 7 | . . . . . 2 1 . . . . . . . . . . . . . . . . . . 1 . . 1 . 2 . . Haulers Reinforced 3 | . . . . . . 1 . . . . . . . . . . 1 . . . . . . . . . . 1 . . . . Stealth | -11 -10 -10 -10 -9 -8 -7 -7 -7 -7 -6 -6 -6 -6 -6 -6 -5 -5 -5 -5 -5 -4 -4 -4 -4 -3 -3 -2 -2 -2 -1 -1 -1 --------- Run | Scr Mat Min Exi Min Mat Fac Low Low Dat Pro Fac Low Low Zio Dee Pro Fac Upp Upp Zhi Pro Fac Arm Lab Res Tes Res Qua Sec Acc Com Ac0 Distress Signals 44 | . 7 . . . 3 1 . . . . 1 . . . . . 3 . . . . . . . 3 2 4 2 1 1 16 . Communications Jammed . | . . . . . . . . . . . . . . . . . . . . . . . . . . . . . . . . . Distress Signals . | . . . . . . . . . . . . . . . . . . . . . . . . . . . . . . . . . Times Spotted 1523 | . 41 4 . 6 52 30 3 10 4 . 5 5 6 . 58 1 27 4 15 . 5 8 3 4 153 153 170 162 176 200 167 51 Peak Tracking Total 33 | . 7 2 . 3 7 6 1 4 4 . 3 3 3 . 19 1 7 4 8 . 2 6 2 3 14 33 17 15 21 16 14 10 Tactical Retreats 34 | . 4 . . . 5 . . . . . . . . . 3 . 6 . 1 . 1 2 . . . 1 1 1 . 3 5 1 Traps | -11 -10 -10 -10 -9 -8 -7 -7 -7 -7 -6 -6 -6 -6 -6 -6 -5 -5 -5 -5 -5 -4 -4 -4 -4 -3 -3 -2 -2 -2 -1 -1 -1 ------- Run | Scr Mat Min Exi Min Mat Fac Low Low Dat Pro Fac Low Low Zio Dee Pro Fac Upp Upp Zhi Pro Fac Arm Lab Res Tes Res Qua Sec Acc Com Ac0 Traps Triggered 11 | . 3 . . . 2 . . . . . . . . . . . 2 . . . . . . . . . . 2 1 . 1 . Indirectly . | . . . . . . . . . . . . . . . . . . . . . . . . . . . . . . . . . Trap Hack Attempts . | . . . . . . . . . . . . . . . . . . . . . . . . . . . . . . . . . Triggered . | . . . . . . . . . . . . . . . . . . . . . . . . . . . . . . . . . Disarmed . | . . . . . . . . . . . . . . . . . . . . . . . . . . . . . . . . . Reprogrammed . | . . . . . . . . . . . . . . . . . . . . . . . . . . . . . . . . . Reused 6 | . . . . . . . . . . . . . . . 6 . . . . . . . . . . . . . . . . . Traps Extracted . | . . . . . . . . . . . . . . . . . . . . . . . . . . . . . . . . . Installed 12 | . . . . . . . . . . . . . . . 12 . . . . . . . . . . . . . . . . . Triggered 5 | . . . . . . . . 1 . . . 2 . . . 2 . . . . . . . . . . . . . . . . Fabricated Traps 12 | . . . . . . . . . . . . . . . 12 . . . . . . . . . . . . . . . . . Machines | -11 -10 -10 -10 -9 -8 -7 -7 -7 -7 -6 -6 -6 -6 -6 -6 -5 -5 -5 -5 -5 -4 -4 -4 -4 -3 -3 -2 -2 -2 -1 -1 -1 ---------- Run | Scr Mat Min Exi Min Mat Fac Low Low Dat Pro Fac Low Low Zio Dee Pro Fac Upp Upp Zhi Pro Fac Arm Lab Res Tes Res Qua Sec Acc Com Ac0 Machines Disabled 114 | . . . . . 5 . . . . . . . . 3 4 . 1 . . . . . 1 3 5 11 16 19 17 9 15 5 Max in Single Turn 2 | . . . . . 2 . . . . . . . . 1 1 . . . . . . . 1 1 1 1 1 1 2 1 2 2 Garrison Access 1 | . . . . . 1 . . . . . . . . . . . . . . . . . . . . . . . . . . . Phase Generator 1 | . . . . . . . . . . . . . . . . . . . . . . . . . . . . . . . 1 . Machines Sabotaged . | . . . . . . . . . . . . . . . . . . . . . . . . . . . . . . . . . Garrisons Compromised . | . . . . . . . . . . . . . . . . . . . . . . . . . . . . . . . . . Overloaded Fab Kills . | . . . . . . . . . . . . . . . . . . . . . . . . . . . . . . . . . Fab Network Shutdowns 4 | . . . . . . 1 . . . . . . . . . . 1 . . . . 1 . . . . . . . 1 . . Hacking | -11 -10 -10 -10 -9 -8 -7 -7 -7 -7 -6 -6 -6 -6 -6 -6 -5 -5 -5 -5 -5 -4 -4 -4 -4 -3 -3 -2 -2 -2 -1 -1 -1 --------- Run | Scr Mat Min Exi Min Mat Fac Low Low Dat Pro Fac Low Low Zio Dee Pro Fac Upp Upp Zhi Pro Fac Arm Lab Res Tes Res Qua Sec Acc Com Ac0 Machines Accessed 82 | . 7 . 2 . 7 10 3 . 4 . 2 . . . . . 10 . 1 4 . 4 4 1 3 2 2 6 1 3 4 2 Terminals 49 | . 5 . . . 5 7 1 . . . 1 . . . . . 5 . 1 . . 3 2 . 2 2 2 6 1 2 4 . Fabricators 11 | . . . . . . 2 . . . . 1 . . . . . 4 . . . . 1 2 . . . . . . 1 . . Repair Stations . | . . . . . . . . . . . . . . . . . . . . . . . . . . . . . . . . . Recycling Units 4 | . 2 . . . 1 . . . . . . . . . . . 1 . . . . . . . . . . . . . . . Scanalyzers 1 | . . . . . . . . . . . . . . . . . . . . . . . . . 1 . . . . . . . Garrison Access 2 | . . . . . 1 1 . . . . . . . . . . . . . . . . . . . . . . . . . . Total Hacks 321 | . 20 . 7 . 17 33 4 . 23 . 12 . . . . . 59 . 1 13 . 22 15 19 8 6 10 9 3 15 16 9 Successful 247 | . 6 . 7 . 8 20 4 . 23 . 11 . . . . . 44 . 1 13 . 18 12 19 8 3 6 9 3 9 14 9 Failed 74 | . 14 . . . 9 13 . . . . 1 . . . . . 15 . . . . 4 3 . . 3 4 . . 6 2 . Catastrophic 8 | . 1 . . . 2 3 . . . . . . . . . . . . . . . . . . . . . . . 2 . . Database Lockouts . | . . . . . . . . . . . . . . . . . . . . . . . . . . . . . . . . . Manual 143 | . 11 . 1 . 12 24 . . . . 6 . . . . . 26 . . . . 10 10 . 4 3 3 7 2 10 14 . Terminals 163 | . 15 . . . 12 23 2 . . . 3 . . . . . 30 . 1 . . 13 6 . 5 6 10 9 3 9 16 . Fabricators 68 | . . . . . . 7 . . . . 9 . . . . . 28 . . . . 9 9 . . . . . . 6 . . Repair Stations . | . . . . . . . . . . . . . . . . . . . . . . . . . . . . . . . . . Recycling Units 9 | . 5 . . . 3 . . . . . . . . . . . 1 . . . . . . . . . . . . . . . Scanalyzers 3 | . . . . . . . . . . . . . . . . . . . . . . . . . 3 . . . . . . . Garrison Access 5 | . . . . . 2 3 . . . . . . . . . . . . . . . . . . . . . . . . . . Terminal Hacks 151 | . 3 . 7 . 2 7 4 . 23 . 1 . . . . . 13 . 1 13 . 9 3 19 4 3 6 7 3 3 11 9 Record 47 | . . . 6 . . . 2 . 11 . . . . . . . . . 1 5 . . . 19 . . . 1 . . . 2 Part Schematic 21 | . . . . . . 2 . . 6 . . . . . . . 7 . . 4 . 1 . . . . . . . 1 . . Robot Schematic 5 | . . . . . . . . . 3 . . . . . . . . . . . . . 1 . 1 . . . . . . . Prototype ID Bank 8 | . 1 . . . . . . . 3 . . . . . . . . . . 4 . . . . . . . . . . . . Open Door 5 | . . . . . . . 2 . . . . . . . . . . . . . . . 1 . . . . 2 . . . . Level Access Points 3 | . . . . . . . . . . . . . . . . . . . . . . . . . . 1 . 1 1 . . . Branch Access Points 8 | . . . . . . 1 . . . . 1 . . . . . 1 . . . . 1 . . 1 . 1 1 . 1 . . Emergency Access Points 1 | . . . . . . . . . . . . . . . . . . . . . . 1 . . . . . . . . . . Machine Index 5 | . . . . . . . . . . . . . . . . . . . . . . . . . 1 1 1 1 1 . . . Terminal Index 2 | . . . . . . 1 . . . . . . . . . . . . . . . . . . . . . . . . 1 . Unreport Threat 11 | . . . . . . 2 . . . . . . . . . . . . . . . 3 . . . . 4 . . . 2 . Locate Traps 5 | . . . . . . . . . . . . . . . . . . . . . . 1 . . . 1 . . 1 1 1 . Dispatch Records 2 | . . . . . 1 . . . . . . . . . . . 1 . . . . . . . . . . . . . . . Recall Investigation 3 | . . . . . . . . . . . . . . . . . 3 . . . . . . . . . . . . . . . Recall Extermination 3 | . . . . . . . . . . . . . . . . . 1 . . . . 1 . . . . . . . . 1 . Recall Reinforcements 1 | . . . . . . . . . . . . . . . . . . . . . . . . . . . . . . . 1 . Recall Assault 3 | . . . . . . . . . . . . . . . . . . . . . . . . . . . . 1 . . 2 . Hauler Manifests 2 | . . . . . 1 . . . . . . . . . . . . . . . . . . . 1 . . . . . . . Registered Components 1 | . 1 . . . . . . . . . . . . . . . . . . . . . . . . . . . . . . . Zone Layout 5 | . 1 . . . . 1 . . . . . . . . . . . . . . . 1 1 . . . . . . . 1 . EX-Prototype ID Bank 1 | . . . 1 . . . . . . . . . . . . . . . . . . . . . . . . . . . . . Disengage Seal 2 | . . . . . . . . . . . . . . . . . . . . . . . . . . . . . . . 2 . Gate Test 138-A 2 | . . . . . . . . . . . . . . . . . . . . . . . . . . . . . . . . 2 Gate Test 138-B 2 | . . . . . . . . . . . . . . . . . . . . . . . . . . . . . . . . 2 Gate Test 138-C 3 | . . . . . . . . . . . . . . . . . . . . . . . . . . . . . . . . 3 Fabricator Hacks 40 | . . . . . . 3 . . . . 6 . . . . . 18 . . . . 6 3 . . . . . . 4 . . Network Status 1 | . . . . . . . . . . . . . . . . . 1 . . . . . . . . . . . . . . . Load Schematic 16 | . . . . . . 1 . . . . 2 . . . . . 8 . . . . 3 1 . . . . . . 1 . . Build 23 | . . . . . . 2 . . . . 4 . . . . . 9 . . . . 3 2 . . . . . . 3 . . Repair Station Hacks . | . . . . . . . . . . . . . . . . . . . . . . . . . . . . . . . . . Recycling Unit Hacks 4 | . 1 . . . 2 . . . . . . . . . . . 1 . . . . . . . . . . . . . . . Retrieve Components 4 | . 1 . . . 2 . . . . . . . . . . . 1 . . . . . . . . . . . . . . . Scanalyzer 3 | . . . . . . . . . . . . . . . . . . . . . . . . . 3 . . . . . . . Insert Component 1 | . . . . . . . . . . . . . . . . . . . . . . . . . 1 . . . . . . . Analyze 2 | . . . . . . . . . . . . . . . . . . . . . . . . . 2 . . . . . . . Garrison Access Hacks 1 | . . . . . 1 . . . . . . . . . . . . . . . . . . . . . . . . . . . Seal Access 1 | . . . . . 1 . . . . . . . . . . . . . . . . . . . . . . . . . . . Unauthorized Hacks 48 | . 2 . . . 3 10 . . . . 4 . . . . . 12 . . . . 3 6 . 1 . . 2 . 2 3 . Terminals 25 | . 2 . . . 3 6 . . . . 1 . . . . . 4 . . . . 1 2 . 1 . . 2 . . 3 . Track 7 | . 1 . . . . 1 . . . . . . . . . . 2 . . . . . 1 . . . . 1 . . 1 . Assimilate 7 | . . . . . . 3 . . . . 1 . . . . . 1 . . . . . . . 1 . . . . . 1 . Botnet 6 | . . . . . . 1 . . . . . . . . . . 1 . . . . 1 1 . . . . 1 . . 1 . Detonate 1 | . . . . . 1 . . . . . . . . . . . . . . . . . . . . . . . . . . . Disrupt 2 | . . . . . 1 1 . . . . . . . . . . . . . . . . . . . . . . . . . . Operators 2 | . 1 . . . 1 . . . . . . . . . . . . . . . . . . . . . . . . . . . Fabricators 21 | . . . . . . 2 . . . . 3 . . . . . 8 . . . . 2 4 . . . . . . 2 . . Report 3 | . . . . . . . . . . . 1 . . . . . 1 . . . . . 1 . . . . . . . . . Prioritize 7 | . . . . . . 1 . . . . 1 . . . . . 2 . . . . 1 1 . . . . . . 1 . . Siphon 9 | . . . . . . 1 . . . . 1 . . . . . 4 . . . . 1 1 . . . . . . 1 . . Haulers 2 | . . . . . . . . . . . . . . . . . 1 . . . . . 1 . . . . . . . . . Repair Stations . | . . . . . . . . . . . . . . . . . . . . . . . . . . . . . . . . . Recycling Units . | . . . . . . . . . . . . . . . . . . . . . . . . . . . . . . . . . Scanalyzers . | . . . . . . . . . . . . . . . . . . . . . . . . . . . . . . . . . Garrison Access 2 | . . . . . . 2 . . . . . . . . . . . . . . . . . . . . . . . . . . Reprogram 2 | . . . . . . 2 . . . . . . . . . . . . . . . . . . . . . . . . . . Data Cores Recovered 1 | . . . . . . 1 . . . . . . . . . . . . . . . . . . . . . . . . . . Used 1 | . . . . . . 1 . . . . . . . . . . . . . . . . . . . . . . . . . . Hacking Detections 42 | . 4 . . . 5 9 . . . . 1 . . . . . 8 . . . . 2 1 . 1 2 2 1 1 3 2 . Full Trace Events 14 | . 3 . . . 2 4 . . . . . . . . . . 3 . . . . . . . . . . . . 1 1 . Feedback Events . | . . . . . . . . . . . . . . . . . . . . . . . . . . . . . . . . . Feedback Blocked . | . . . . . . . . . . . . . . . . . . . . . . . . . . . . . . . . . Robot Schematics Acquired 5 | . . . . . . . . . 3 . . . . . . . . . . . . . 1 . 1 . . . . . . . Robots Built 10 | . . . . . . 8 . . . . . . . . . . . . . . . . 2 . . . . . . . . . Matter 854 | . . . . . . 378 . . . . . . . . . . . . . . . . 476 . . . . . . . . . Time 218 | . . . . . . 134 . . . . . . . . . . . . . . . . 84 . . . . . . . . . Total Robot Build Rating 44 | . . . . . . 32 . . . . . . . . . . . . . . . . 12 . . . . . . . . . Part Schematics Acquired 22 | . . . . . . 2 . . 6 . . . . . . . 7 . . 4 . 1 . . 1 . . . . 1 . . Parts Built 25 | . . . . . . . . . . . 5 . . . . . 13 . . . . 4 . . . . . . . 3 . . Matter 3490 | . . . . . . . . . . . 522 . . . . . 1380 . . . . 652 . . . . . . . 936 . . Time 1055 | . . . . . . . . . . . 178 . . . . . 538 . . . . 228 . . . . . . . 111 . . Total Part Build Rating 140 | . . . . . . . . . . . 26 . . . . . 65 . . . . 22 . . . . . . . 27 . . Parts Repaired . | . . . . . . . . . . . . . . . . . . . . . . . . . . . . . . . . . Time . | . . . . . . . . . . . . . . . . . . . . . . . . . . . . . . . . . Parts Recycled . | . . . . . . . . . . . . . . . . . . . . . . . . . . . . . . . . . Recycled Matter . | . . . . . . . . . . . . . . . . . . . . . . . . . . . . . . . . . Retrieved Matter . | . . . . . . . . . . . . . . . . . . . . . . . . . . . . . . . . . Retrieved Components 20 | . 1 . . . 17 . . . . . . . . . . . 2 . . . . . . . . . . . . . . . Parts Scanalyzed 1 | . . . . . . . . . . . . . . . . . . . . . . . . . 1 . . . . . . . Part Schematics Acquired 1 | . . . . . . . . . . . . . . . . . . . . . . . . . 1 . . . . . . . Parts Damaged . | . . . . . . . . . . . . . . . . . . . . . . . . . . . . . . . . . Bothacking | -11 -10 -10 -10 -9 -8 -7 -7 -7 -7 -6 -6 -6 -6 -6 -6 -5 -5 -5 -5 -5 -4 -4 -4 -4 -3 -3 -2 -2 -2 -1 -1 -1 ------------ Run | Scr Mat Min Exi Min Mat Fac Low Low Dat Pro Fac Low Low Zio Dee Pro Fac Upp Upp Zhi Pro Fac Arm Lab Res Tes Res Qua Sec Acc Com Ac0 Used RIF Installer . | . . . . . . . . . . . . . . . . . . . . . . . . . . . . . . . . . Robots Hacked . | . . . . . . . . . . . . . . . . . . . . . . . . . . . . . . . . . Non-combat . | . . . . . . . . . . . . . . . . . . . . . . . . . . . . . . . . . Combat . | . . . . . . . . . . . . . . . . . . . . . . . . . . . . . . . . . Robot Hacks Applied . | . . . . . . . . . . . . . . . . . . . . . . . . . . . . . . . . . Relay Couplers Released . | . . . . . . . . . . . . . . . . . . . . . . . . . . . . . . . . . Robots Rewired 1 | . . 1 . . . . . . . . . . . . . . . . . . . . . . . . . . . . . . Allies Hacked 1 | . . . . . . . . . . . . . . . . . . . . . . . . . . . . . . . 1 . Hacks Repelled 2 | . . . . . . . . . . . . . . . . . . . . . . . . . . 1 1 . . . . . Allies | -11 -10 -10 -10 -9 -8 -7 -7 -7 -7 -6 -6 -6 -6 -6 -6 -5 -5 -5 -5 -5 -4 -4 -4 -4 -3 -3 -2 -2 -2 -1 -1 -1 -------- Run | Scr Mat Min Exi Min Mat Fac Low Low Dat Pro Fac Low Low Zio Dee Pro Fac Upp Upp Zhi Pro Fac Arm Lab Res Tes Res Qua Sec Acc Com Ac0 Total Allies 172 | . . 1 . . . 12 . . . . 1 . . . . . 1 . . . . . 2 37 8 . 4 2 2 4 77 21 Largest Group 54 | . . 1 . . . 9 8 3 1 . 1 . . . . . . . . . . . 2 33 30 21 20 18 18 18 54 10 Highest-Rated Group 4636 | . . 8 . . . 122 102 34 10 . 26 . . . . . . . . . . . 120 4636 4636 4501 4481 4356 4340 4315 4126 1944 Highest-Rated Ally 243 | . . 8 . . . 26 16 12 10 . 26 . . . . . . . . . . . 60 243 243 243 243 243 243 243 243 243 Total Orders 177 | . . 2 . . . 4 . . 7 . . 3 4 1 40 . 12 3 14 1 8 . 5 5 33 16 15 3 . . 1 . STAY 35 | . . . . . . 2 . . 7 . . . 1 . 6 . . . 1 . . . 1 4 8 3 1 . . . 1 . ROAM 9 | . . . . . . . . . . . . . . . 6 . . . . . . . . . 3 . . . . . . . FOLLOW 18 | . . 1 . . . 2 . . . . . . 1 . 1 . . . 1 . . . 1 1 6 3 1 . . . . . DROP 1 | . . 1 . . . . . . . . . . . . . . . . . . . . . . . . . . . . . . EXPLORE 8 | . . . . . . . . . . . . . . . 4 . . 1 3 . . . . . . . . . . . . . RETURN 106 | . . . . . . . . . . . . 3 2 1 23 . 12 2 9 1 8 . 3 . 16 10 13 3 . . . . Ally Attacks 4350 | . . . . . . 145 29 7 . . 2 48 19 . 151 . 55 23 67 . 39 . 10 46 596 264 444 353 375 435 1087 155 Total Damage 269393 | . . . . . . 1659 313 88 . . 23 763 390 . 2240 . 1233 553 1316 . 815 . 254 1933 33610 23637 34930 27504 31946 37254 59058 9874 Kills 1150 | . . . . . . 18 3 2 . . . 2 4 . 37 . 11 5 8 . 7 . 2 4 150 99 147 127 128 151 231 14 Allies Corrupted 28 | . . . . . . . . . . . . . . . . . . . . . . . . . . . 2 1 1 . 18 6 Allies Melted . | . . . . . . . . . . . . . . . . . . . . . . . . . . . . . . . . . Fabricated Assembled 31 | . . . . . . . . . . . . . . . . . . . . . . . . 13 8 . . . . . . 10 Intel | -11 -10 -10 -10 -9 -8 -7 -7 -7 -7 -6 -6 -6 -6 -6 -6 -5 -5 -5 -5 -5 -4 -4 -4 -4 -3 -3 -2 -2 -2 -1 -1 -1 ------- Run | Scr Mat Min Exi Min Mat Fac Low Low Dat Pro Fac Low Low Zio Dee Pro Fac Upp Upp Zhi Pro Fac Arm Lab Res Tes Res Qua Sec Acc Com Ac0 Robot Analysis Total 115 | . . . . . . . . . 115 . . . . . . . . . . . . . . . . . . . . . . . Derelict Logs Recovered 18 | . . 1 . 3 . . 1 1 . 2 . 1 3 . . 1 . 3 1 . 1 . . . . . . . . . . . Drone Launches 172 | . . . . . . . . . . . 2 4 4 2 25 . 21 5 16 2 10 . 6 . 28 18 23 6 . . . . Drone Recoveries 169 | . . . . . . . . . . . . 4 4 2 27 . 20 4 16 2 12 . 6 . 28 18 22 4 . . . . Exploration | -11 -10 -10 -10 -9 -8 -7 -7 -7 -7 -6 -6 -6 -6 -6 -6 -5 -5 -5 -5 -5 -4 -4 -4 -4 -3 -3 -2 -2 -2 -1 -1 -1 ------------- Run | Scr Mat Min Exi Min Mat Fac Low Low Dat Pro Fac Low Low Zio Dee Pro Fac Upp Upp Zhi Pro Fac Arm Lab Res Tes Res Qua Sec Acc Com Ac0 Turns Passed 37269 | 95 1851 1971 593 946 1701 656 504 175 158 316 390 305 289 538 3211 306 1292 224 218 149 213 598 423 3027 1884 826 1872 2177 2033 1515 5309 1504 Spaces Moved 24781 | 58 1062 955 447 477 976 750 585 275 173 307 176 327 329 637 2430 158 1011 241 275 218 269 430 256 1036 818 666 937 1359 1729 1027 3393 994 Core 70 | 3 1 . . . . . . . . . . . . . 66 . . . . . . . . . . . . . . . . . Treads 1979 | . 240 955 14 467 303 . . . . . . . . . . . . . . . . . . . . . . . . . . . Legs . | . . . . . . . . . . . . . . . . . . . . . . . . . . . . . . . . . Wheels 1877 | 55 821 . 433 10 558 . . . . . . . . . . . . . . . . . . . . . . . . . . . Hover 20855 | . . . . . 115 750 585 275 173 307 176 327 329 637 2364 158 1011 241 275 218 269 430 256 1036 818 666 937 1359 1729 1027 3393 994 Flight . | . . . . . . . . . . . . . . . . . . . . . . . . . . . . . . . . . Fastest Speed 22 | 50 100 180 130 130 52 52 52 52 52 56 56 72 72 72 52 52 52 52 52 52 52 48 48 48 24 48 48 48 24 22 22 22 Average Speed 66 | 99 133 183 131 178 114 52 52 52 52 56 62 72 72 72 79 58 52 81 52 57 52 48 48 48 47 48 48 48 46 40 39 30 Slowest Speed 900 | 100 850 200 180 180 160 52 52 112 56 56 76 72 72 72 900 122 200 156 52 152 52 48 48 156 48 48 48 48 148 44 148 122 Overloaded Moves . | . . . . . . . . . . . . . . . . . . . . . . . . . . . . . . . . . Propulsion Burnouts . | . . . . . . . . . . . . . . . . . . . . . . . . . . . . . . . . . Robots Hopped 25 | . . . . . . . . . . . . . . . . . . . . . . . . 21 . . . . . . . 4 Cave-ins Triggered . | . . . . . . . . . . . . . . . . . . . . . . . . . . . . . . . . . Teleports 3 | . . . . . . . . . . . . . . . . . . . . . . . 1 . . . . . . . 1 1 Exploration Rate (%) 51 | 5 95 95 71 89 57 19 52 52 79 53 8 60 60 76 79 34 13 57 74 61 56 17 14 100 17 40 28 68 53 14 53 36 Regions Visited 32 Branch Regions 23 Pre-discovered Areas 31 | . . . 1 . . . . . 25 1 . . . 1 . . . . . 3 . . . . . . . . . . . . Known Exits Taken 22 | . . . . . 1 1 1 1 1 1 1 1 1 1 . . 1 1 . . 1 1 1 1 1 1 1 1 1 1 . . Unknown Exits Taken 10 | 1 1 1 1 1 . . . . . . . . . . 1 1 . . 1 1 . . . . . . . . . . 1 . Scrap Searched 25 | . . 1 . 1 . . 4 3 . 1 . 3 3 2 . . . 3 2 . 2 . . . . . . . . . . . Spaces Dug 868 | . 3 . . 7 13 13 3 1 4 5 3 4 3 2 6 . 19 . 1 . 1 20 5 48 26 5 105 92 2 61 317 99 Terrain Destroyed 4591 | . 9 8 . 29 219 43 3 46 4 5 3 4 3 3 8 33 19 . 1 . 1 21 5 48 29 58 258 438 219 313 2323 438 Melee 159 | . 3 . . . 13 13 3 1 4 5 3 4 3 1 2 . 19 . 1 . 1 18 5 27 18 3 5 2 . 2 3 . Projectile 160 | . . . . . . . . . . . . . . 2 6 . . . . . . 3 . 21 11 4 8 9 3 2 83 8 AOE 4272 | . 6 8 . 29 206 30 . 45 . . . . . . . 33 . . . . . . . . . 51 245 427 216 309 2237 430 Terrain Rammed . | . . . . . . . . . . . . . . . . . . . . . . . . . . . . . . . . . Walls Destroyed . | . . . . . . . . . . . . . . . . . . . . . . . . . . . . . . . . . Machines Disabled . | . . . . . . . . . . . . . . . . . . . . . . . . . . . . . . . . . Actions | -11 -10 -10 -10 -9 -8 -7 -7 -7 -7 -6 -6 -6 -6 -6 -6 -5 -5 -5 -5 -5 -4 -4 -4 -4 -3 -3 -2 -2 -2 -1 -1 -1 --------- Run | Scr Mat Min Exi Min Mat Fac Low Low Dat Pro Fac Low Low Zio Dee Pro Fac Upp Upp Zhi Pro Fac Arm Lab Res Tes Res Qua Sec Acc Com Ac0 Total 42992 | 78 1340 1146 452 541 1417 947 777 292 212 440 446 372 379 692 3538 361 1723 268 335 236 339 776 536 3269 2216 1135 2200 2742 2835 1880 6987 2085 Wait 15138 | 1 136 129 . 41 269 132 175 1 13 128 246 10 40 12 810 194 655 28 50 2 70 305 236 1957 1296 419 1102 1176 903 579 3047 976 Move 24716 | 57 1061 954 446 476 975 749 584 275 172 306 175 326 328 636 2429 157 1010 240 274 217 268 429 255 1009 817 665 936 1358 1728 1026 3392 986 Hop 8 | . . . . . . . . . . . . . . . . . . . . . . . . 5 . . . . . . . 3 Pick Up 196 | 6 21 10 2 . 17 6 4 . 2 . 5 3 . 5 31 . 8 . . 4 . 7 11 5 2 1 . 7 5 11 22 1 Fast Attach 133 | 7 5 2 . . 5 . 1 . 2 . 2 . . 1 20 . 6 . . 2 . 1 4 4 6 5 3 4 13 4 35 1 Attach 148 | . 5 3 . . 5 5 1 1 1 . 3 4 4 3 12 . 2 . . . . 4 4 10 9 1 5 7 9 8 30 12 Detach 142 | . . 1 . . 5 . 2 . 4 . 3 3 4 3 12 . 3 . . . . 1 3 13 12 3 4 8 8 5 37 8 Swap 233 | . 11 2 2 5 22 12 1 7 2 1 3 2 . 6 10 2 4 . 1 2 . 1 2 2 6 4 27 23 16 26 20 11 Drop 250 | . 13 11 2 . 13 3 2 . 2 . 4 3 . 4 47 . 9 . 1 6 . 2 9 24 5 4 3 5 7 14 56 1 Fire 1462 | 7 76 26 . 13 81 16 2 7 . . . 14 . 17 124 8 . . 3 . . 7 . 187 29 21 76 93 95 169 327 64 Melee 446 | . 12 . . . 24 24 3 1 14 5 5 7 3 5 31 . 26 . 6 3 1 19 11 53 34 7 34 24 13 38 21 22 Ram 2 | . . . . . 1 . 1 . . . . . . . . . . . . . . . . . . . . . . . . . Kick . | . . . . . . . . . . . . . . . . . . . . . . . . . . . . . . . . . Crush 13 | . . 7 . 6 . . . . . . . . . . . . . . . . . . . . . . . . . . . . Escape Stasis 90 | . . . . . . . . . . . . . . . . . . . . . . . . . . 5 10 37 38 . . . Rewire 2 | . . 1 . . . . 1 . . . . . . . . . . . . . . . . . . . . . . . . . Trap 12 | . . . . . . . . . . . . . . . 12 . . . . . . . . . . . . . . . . . Miscellaneous 1 | . . . . . . . . . . . . . . . . . . . . . . . 1 . . . . . . . . . Route ------- -11/Scrapyard -10/Materials (discovered 4 exits: [*Mat x3] / [*Min]) -10/Mines (discovered 3 exits: [*Mat x2] / *Exi) -10/Exiles -9/Mines -8/Materials (discovered 3 exits: *Fac x3) -7/Factory (discovered 3 exits: Sto / *Low x2) -7/Lower Caves -7/Lower Caves -7/Data Miner -6/Proximity Caves -6/Factory (discovered 2 exits: *Low x2) -6/Lower Caves -6/Lower Caves -6/Zion (discovered 2 exits: *Dee / [*Pro]) -6/Deep Caves -5/Proximity Caves -5/Factory (discovered 5 exits: Fac / *Upp x2 / Ext x2) -5/Upper Caves -5/Upper Caves (discovered 2 exits: *Fac / *Zhi) -5/Zhirov -4/Proximity Caves -4/Factory (discovered 4 exits: Res / Upp x2 / *Arm) -4/Armory -4/Lab -3/Research (discovered 2 exits: *Tes x2) -3/Testing -2/Research (discovered 2 exits: *Qua x2) -2/Quarantine (discovered 2 exits: Acc / *Sec) -2/Section 7 -1/Access -1/Command -1/Access_0 Tau Ceti IV Orbit History --------- Turn | Location | Event 12 | -11/Scrapyard | Discovered new exit (range 16) 96 | -11/Scrapyard | Entered Materials 314 | -10/Materials | Build established: Mutant 373 | -10/Materials | Discovered new exit (range 9) 513 | -10/Materials | Discovered new exit (range 15) 649 | -10/Materials | Lost 3 parts (1n2w) 683 | -10/Materials | Discovered new exit (range 9) 955 | -10/Materials | Discovered new exit (range 15) 1634 | -10/Materials | Lost 3 parts (1p1n1w) 1947 | -10/Materials | Entered Mines 1999 | -10/Mines | Met a Derelict bent on vengeance 2079 | -10/Mines | Discovered new exit (range 6) 2798 | -10/Mines | Learned Materials non-interactive machine intel 3138 | -10/Mines | Discovered new exit (range 16) 3426 | -10/Mines | A weapon hastily lodged in a ceiling crevice suddenly fell to the ground 3454 | -10/Mines | Deemed a non-threat by the Exiles lab entrance 3454 | -10/Mines | Discovered new exit (range 5) 3723 | -10/Mines | Found a damaged Exp. Sensor Array with a note attached 3727 | -10/Mines | Found Prototype Device 3918 | -10/Mines | Entered Exiles 3958 | -10/Exiles | Met 8R-AWN 3978 | -10/Exiles | Met EX-HEX 4023 | -10/Exiles | Met EX-BIN 4041 | -10/Exiles | Aligned with FarCom system 4043 | -10/Exiles | Given EX-Vault access code 4079 | -10/Exiles | Met EX-DEC 4121 | -10/Exiles | Learned location of Zion (-6) 4369 | -10/Exiles | Opened EX-Vault 4376 | -10/Exiles | Found Prototype Storage 4383 | -10/Exiles | Identified Lightpack 2.0 4388 | -10/Exiles | Found Modified TNC 4413 | -10/Exiles | Warned to stay clear of 0b10 Research branches 4425 | -10/Exiles | Exiles lab attacked by MAIN.C 4499 | -10/Exiles | Discovered new exit (range 10) 4511 | -10/Exiles | Stole two prototypes: Lightpack 2.0, Modified TNC 4511 | -10/Exiles | Entered Mines 4570 | -9/Mines | Learned location of 1 exit from Materials 4666 | -9/Mines | Learned Materials emergency access door positions 4737 | -9/Mines | Core integrity fell below 50% 4796 | -9/Mines | Received a Rocket Launcher from a helpful Derelict 5440 | -9/Mines | Discovered new exit (range 8) 5457 | -9/Mines | Entered Materials 5457 | -8/Materials | Evolved 4 slots: Propulsion x1, Utility x3 5458 | -8/Materials | Identified exit to Factory 5460 | -8/Materials | Loaded intel: 42 non-interactive machine locations 5749 | -8/Materials | Build established: Scavenger-Mutant 6112 | -8/Materials | Discovered exit to Factory (range 16) 6573 | -8/Materials | Discovered exit to Factory (range 3) 6863 | -8/Materials | Build established: Hauler-Mutant 7057 | -8/Materials | First assault squad dispatched 7158 | -8/Materials | Entered Factory 7158 | -7/Factory | Evolved 2 slots: Utility x2 7159 | -7/Factory | Identified exit to Lower Caves 7160 | -7/Factory | FarCom data flow suspended 7161 | -7/Factory | Identified Exp. Sensor Array 7269 | -7/Factory | Identified exit to Storage 7462 | -7/Factory | Build established: Hacker-Mutant 7474 | -7/Factory | Fabricated S-27 Virus? 7517 | -7/Factory | Garrison activated, responded to threat 7543 | -7/Factory | Fabricated S-27 Virus? 7657 | -7/Factory | Local fabrication network quarantined 7814 | -7/Factory | Entered Lower Caves 7814 | -7/Lower Caves | Accompanied by 8 allies 7814 | -7/Lower Caves | Spotted 2X-3J6(f) 7815 | -7/Lower Caves | Encountered a Master Thief 7820 | -7/Lower Caves | Allies destroyed 2X-3J6(f) 7930 | -7/Lower Caves | Encountered a Warlord checkpoint 8188 | -7/Lower Caves | Learned Factory garrison access intel 8213 | -7/Lower Caves | Discovered new exit (range 12) 8227 | -7/Lower Caves | Identified exit to Lower Caves 8239 | -7/Lower Caves | Found Prototype Device 8318 | -7/Lower Caves | Entered another Lower Caves area 8318 | -7/Lower Caves | Accompanied by 3 allies 8373 | -7/Lower Caves | Encountered a Warlord checkpoint 8377 | -7/Lower Caves | Learned Factory emergency access door positions 8464 | -7/Lower Caves | Attracted the attention of an 0b10 checkpoint 8484 | -7/Lower Caves | Discovered new exit (range 15) 8485 | -7/Lower Caves | Spotted BR-SI7(f) 8485 | -7/Lower Caves | Spotted AO-JBO(f) 8485 | -7/Lower Caves | Spotted OW-2UR(f) 8485 | -7/Lower Caves | Spotted ZR-S5L(f) 8487 | -7/Lower Caves | Encountered a Master Thief 8487 | -7/Lower Caves | Encountered a Master Thief 8487 | -7/Lower Caves | Encountered a Master Thief 8489 | -7/Lower Caves | Encountered a Master Thief 8490 | -7/Lower Caves | Identified exit to Data Miner 8493 | -7/Lower Caves | Entered Data Miner 8493 | -7/Data Miner | Accompanied by 1 ally 8496 | -7/Data Miner | Discovered new exit (range 6) 8508 | -7/Data Miner | Met Data Miner 8518 | -7/Data Miner | Learned location of Section 7 (-2) 8518 | -7/Data Miner | Acquired the access code to Warlord's prototype stash 8527 | -7/Data Miner | Received God Mode back door access code from Data Miner 8541 | -7/Data Miner | Build established: Hauler-Mutant 8548 | -7/Data Miner | Identified exit to Proximity Caves 8581 | -7/Data Miner | Destroyed Data Miner 8584 | -7/Data Miner | Found Prototype Hackware 8584 | -7/Data Miner | Identified System Mapper 8586 | -7/Data Miner | Found Prototype Hackware 8588 | -7/Data Miner | Found Prototype Hackware 8592 | -7/Data Miner | Interfaced with the Data Conduit 8651 | -7/Data Miner | Entered Proximity Caves 8881 | -6/Proximity Caves | Build established: Hacker-Mutant 8894 | -6/Proximity Caves | Identified exit to Factory 8967 | -6/Proximity Caves | Entered Factory 8967 | -6/Factory | Evolved 2 slots: Utility x2 8969 | -6/Factory | Loaded intel: 256 machine locations 8970 | -6/Factory | Loaded intel: 4 garrison access locations 9020 | -6/Factory | Identified Deep Network Scanner 9021 | -6/Factory | Identified Quantum Router 9074 | -6/Factory | Identified exit to Lower Caves 9154 | -6/Factory | Fabricated Cmb. Airjet (x2) 9208 | -6/Factory | Fabricated Cmb. Airjet (x2) 9296 | -6/Factory | Fabricated Combat Drone Bay (x1) 9324 | -6/Factory | Build established: Wizard-Mutant 9357 | -6/Factory | Entered Lower Caves 9357 | -6/Lower Caves | Accompanied by 2 allies 9357 | -6/Lower Caves | Spotted YP-J2P(f) 9357 | -6/Lower Caves | Spotted 8J-F81(f) 9358 | -6/Lower Caves | Encountered a Master Thief 9358 | -6/Lower Caves | Encountered a Master Thief 9358 | -6/Lower Caves | Spotted LR-21H(f) 9363 | -6/Lower Caves | Encountered a Master Thief 9391 | -6/Lower Caves | Allies destroyed YP-J2P(f) 9403 | -6/Lower Caves | Allies destroyed 8J-F81(f) 9603 | -6/Lower Caves | Learned Factory stockpile data 9658 | -6/Lower Caves | Discovered new exit (range 3) 9660 | -6/Lower Caves | Identified exit to Lower Caves 9662 | -6/Lower Caves | Entered another Lower Caves area 9662 | -6/Lower Caves | Accompanied by 2 allies 9752 | -6/Lower Caves | Attracted the attention of an 0b10 checkpoint 9776 | -6/Lower Caves | Learned location of 1 exit from Factory 9802 | -6/Lower Caves | Learned Factory security intel 9817 | -6/Lower Caves | Encountered a Warlord checkpoint 9845 | -6/Lower Caves | Learned 4 Factory zone layouts 9938 | -6/Lower Caves | Discovered new exit (range 7) 9946 | -6/Lower Caves | Identified exit to Zion 9951 | -6/Lower Caves | Entered Zion 9951 | -6/Zion | Accompanied by 2 allies 9969 | -6/Zion | Received a hallucinogenic algorithm 9985 | -6/Zion | Discovered new exit (range 16) 10003 | -6/Zion | Found CR-A16's Pointy Stick 10151 | -6/Zion | Learned Factory repair station intel 10169 | -6/Zion | Found Relay Coupler [Programmer] 10192 | -6/Zion | Learned Factory emergency access door positions 10204 | -6/Zion | Given the Hacking Drone Bay 10240 | -6/Zion | Found Prototype Device 10447 | -6/Zion | Discovered new exit (range 4) 10447 | -6/Zion | Saw the warning signs outside the Deep Caves entrance 10485 | -6/Zion | Identified exit to Deep Caves 10489 | -6/Zion | Entered Deep Caves 10489 | -6/Deep Caves | Accompanied by 2 allies 10562 | -6/Deep Caves | Z-Facility disabled 10836 | -6/Deep Caves | Attacked by Z-Imprinter 10868 | -6/Deep Caves | Destroyed Z-Imprinter 10876 | -6/Deep Caves | Found Prototype Device 10876 | -6/Deep Caves | Identified Zio. Metafield Generator 10912 | -6/Deep Caves | Found Prototype Protection 10912 | -6/Deep Caves | Identified Zio. Weapon Casing 10983 | -6/Deep Caves | Identified Bomb Factory No. 2 12697 | -6/Deep Caves | Triggered Deep Caves wall 12705 | -6/Deep Caves | Allies destroyed AS-62919 12821 | -6/Deep Caves | Allies destroyed AS-10248 12824 | -6/Deep Caves | Exposed GOLEM chamber 12875 | -6/Deep Caves | Found Mobile Assembly Unit 12974 | -6/Deep Caves | Found GOLEM Unit 13008 | -6/Deep Caves | Found GOLEM Unit 13020 | -6/Deep Caves | Found GOLEM Unit 13025 | -6/Deep Caves | Found GOLEM Unit 13029 | -6/Deep Caves | Found GOLEM Unit 13032 | -6/Deep Caves | Found GOLEM Unit 13038 | -6/Deep Caves | Found GOLEM Unit 13041 | -6/Deep Caves | Found GOLEM Unit 13045 | -6/Deep Caves | Found GOLEM Unit 13048 | -6/Deep Caves | Found GOLEM Unit 13076 | -6/Deep Caves | Found GOLEM Unit 13080 | -6/Deep Caves | Found GOLEM Unit 13439 | -6/Deep Caves | Found GOLEM Unit 13444 | -6/Deep Caves | Found GOLEM Unit 13582 | -6/Deep Caves | Found GOLEM Unit 13587 | -6/Deep Caves | Found GOLEM Unit 13652 | -6/Deep Caves | Found GOLEM Unit 13663 | -6/Deep Caves | Found GOLEM Unit 13698 | -6/Deep Caves | Discovered new exit (range 6) 13700 | -6/Deep Caves | Entered Proximity Caves 13808 | -5/Proximity Caves | Discovered new exit (range 14) 13815 | -5/Proximity Caves | Learned Factory stockpile data 13971 | -5/Proximity Caves | Received a Behemoth hack from an annoying Tinkerer 14006 | -5/Proximity Caves | Entered Factory 14006 | -5/Factory | Evolved 2 slots: Utility x2 14007 | -5/Factory | Identified exit to Factory 14012 | -5/Factory | Loaded intel: 251 machine locations 14013 | -5/Factory | Loaded intel: 6 repair station locations 14139 | -5/Factory | Fabricated Adv. Signal Interpreter (x2) 14163 | -5/Factory | Identified exit to Upper Caves 14163 | -5/Factory | Identified exit to Extension 14339 | -5/Factory | Fabricated Lrg. Storage Unit (x1) 14371 | -5/Factory | Fabricated Combat Drone Bay? 14374 | -5/Factory | Fabricated Cmb. Linear Gravjet (x2) 14576 | -5/Factory | Fabricated Hcp. Storage Unit (x1) 14604 | -5/Factory | Fabricated Cmb. Linear Gravjet? 14652 | -5/Factory | Fabricated Exp. Signal Interpreter (x1) 15078 | -5/Factory | Fabricated Adv. Salvage Targeting Computer? 15152 | -5/Factory | Fabricated Spread Laser (x2) 15202 | -5/Factory | Local fabrication network quarantined 15286 | -5/Factory | Intercept squad dispatched 15296 | -5/Factory | Spotted Tracker 15298 | -5/Factory | Entered Upper Caves 15298 | -5/Upper Caves | Accompanied by 1 ally 15336 | -5/Upper Caves | Encountered a Warlord checkpoint 15385 | -5/Upper Caves | Identified exit to Upper Caves 15441 | -5/Upper Caves | Learned Factory garrison access intel 15451 | -5/Upper Caves | Learned Factory trap positions 15522 | -5/Upper Caves | Entered another Upper Caves area 15522 | -5/Upper Caves | Accompanied by 2 allies 15534 | -5/Upper Caves | Discovered exit to Factory (range 10) 15545 | -5/Upper Caves | Attracted the attention of an 0b10 checkpoint 15567 | -5/Upper Caves | Encountered a Warlord checkpoint 15673 | -5/Upper Caves | Learned Factory trap positions 15723 | -5/Upper Caves | Discovered new exit (range 19) 15726 | -5/Upper Caves | Spotted 3Y-IJ9(f) 15726 | -5/Upper Caves | Spotted 19-T5T(f) 15726 | -5/Upper Caves | Spotted 8L-1JV(f) 15726 | -5/Upper Caves | Spotted DX-9DI(f) 15728 | -5/Upper Caves | Encountered a Master Thief 15728 | -5/Upper Caves | Encountered a Master Thief 15728 | -5/Upper Caves | Encountered a Master Thief 15728 | -5/Upper Caves | Encountered a Master Thief 15740 | -5/Upper Caves | Entered Zhirov 15740 | -5/Zhirov | Accompanied by 2 allies 15740 | -5/Zhirov | Discovered new exit (range 3) 15774 | -5/Zhirov | Found Alien Artifact 15774 | -5/Zhirov | Identified Integrated Reactor 15774 | -5/Zhirov | Installed Integrated Reactor, increased core energy generation (+10) 15804 | -5/Zhirov | Found Alien Artifact 15889 | -5/Zhirov | Entered Proximity Caves 15889 | -4/Proximity Caves | Accompanied by 2 allies 16055 | -4/Proximity Caves | Spotted B-86 Titan 16078 | -4/Proximity Caves | Learned Research stockpile data 16082 | -4/Proximity Caves | Discovered exit to Factory (range 10) 16102 | -4/Proximity Caves | Entered Factory 16102 | -4/Factory | Evolved 2 slots: Propulsion x1, Utility x1 16103 | -4/Factory | Loaded intel: 101 trap records 16105 | -4/Factory | Loaded intel: 291 machine locations 16106 | -4/Factory | Loaded intel: 4 garrison access locations 16127 | -4/Factory | Identified exit to Upper Caves 16127 | -4/Factory | Identified exit to Armory 16203 | -4/Factory | Found Quantum Capacitor 16404 | -4/Factory | Fabricated Assault Drone Bay? 16450 | -4/Factory | Fabricated Powered Armor? 16546 | -4/Factory | Fabricated Assault Drone Bay (x1) 16582 | -4/Factory | Discovered new exit (range 17) 16604 | -4/Factory | Local fabrication network quarantined 16700 | -4/Factory | Entered Armory 16701 | -4/Armory | Loaded intel: 69 machine locations 16706 | -4/Armory | Identified Transdimensional Reconstructor 16706 | -4/Armory | Warped through subspace to slip node 16706 | -4/Armory | Discovered new exit (range 1) 16706 | -4/Armory | Identified exit to Lab 16752 | -4/Armory | Found Antimissile System 16974 | -4/Armory | Fabricated I-47 Archangel (x1) 17026 | -4/Armory | Fabricated I-47 Archangel (x1) 17123 | -4/Armory | Entered Lab 17123 | -4/Lab | Accompanied by 2 allies 17123 | -4/Lab | Discovered new exit (range 9) 17190 | -4/Lab | Identified exit to Research 17192 | -4/Lab | Hidden lab's door opened automatically 17192 | -4/Lab | Sensor layout match revealed 17193 | -4/Lab | Gained access to the hidden lab's interior 17207 | -4/Lab | Found Alien Artifact 17213 | -4/Lab | Identified Core Reset Matrix 17213 | -4/Lab | Used Core Reset Matrix 17217 | -4/Lab | Sensed 3 artifacts in vicinity 18293 | -4/Lab | Detected by scanners 18299 | -4/Lab | Confronted by A5 18303 | -4/Lab | Allies destroyed A5 18625 | -4/Lab | Found GOLEM Unit 18861 | -4/Lab | Found Transdimensional Reconstructor 18874 | -4/Lab | Found Integrated Dissipator 18874 | -4/Lab | Installed Integrated Dissipator, increased core heat dissipation (+20) 19069 | -4/Lab | Found GOLEM Unit 19106 | -4/Lab | Decrypted terminal 19106 | -4/Lab | Acquired modification code for an L2 power cell 19212 | -4/Lab | Found Deep Network Scanner 19214 | -4/Lab | Found Prototype Protection 19214 | -4/Lab | Identified Hvy. Regenerative Plating 19217 | -4/Lab | Found Prototype Energy Cannon 19217 | -4/Lab | Identified Potential Cannon 19559 | -4/Lab | Disabled Active System Cloaker 19567 | -4/Lab | MAIN.C forces arrive to investigate 20150 | -4/Lab | Entered Research 20150 | -3/Research | Accompanied by 30 allies 20150 | -3/Research | Evolved 2 slots: Power x1, Utility x1 20227 | -3/Research | Spotted B-86 Titan 20240 | -3/Research | Destroyed B-86 Titan 20265 | -3/Research | Identified exit to Testing 20436 | -3/Research | First assault squad dispatched 20774 | -3/Research | Intercept squad dispatched 20805 | -3/Research | Spotted Tracker 20806 | -3/Research | Spotted Tracker 20813 | -3/Research | Allies destroyed Tracker 21038 | -3/Research | High security lockdown imminent 21118 | -3/Research | High security lockdown engaged 21433 | -3/Research | Spotted Investigator 21433 | -3/Research | Scanned by Researcher 21435 | -3/Research | Allies destroyed Investigator 21711 | -3/Research | Spotted Striker 21716 | -3/Research | Allies destroyed Striker 21743 | -3/Research | Allies destroyed Executioner 21788 | -3/Research | Sterilization system engaged 21788 | -3/Research | Non-combat units ordered to evacuate 21888 | -3/Research | Combat units ordered to evacuate 22034 | -3/Research | Entered Testing 22034 | -3/Testing | Accompanied by 21 allies 22212 | -3/Testing | Discovered new exit (range 10) 22284 | -3/Testing | First assault squad dispatched 22310 | -3/Testing | High security lockdown imminent 22328 | -3/Testing | Identified exit to Research 22390 | -3/Testing | High security lockdown engaged 22530 | -3/Testing | Spotted Investigator 22536 | -3/Testing | Allies destroyed Investigator 22580 | -3/Testing | Found Unknown Launcher 22580 | -3/Testing | Identified Fusion Bomb Launcher 22684 | -3/Testing | Spotted Executioner 22690 | -3/Testing | Spotted Executioner 22691 | -3/Testing | Spotted Striker 22696 | -3/Testing | Allies destroyed Executioner 22704 | -3/Testing | Allies destroyed Striker 22706 | -3/Testing | Allies destroyed Executioner 22761 | -3/Testing | Intercept squad dispatched 22764 | -3/Testing | Spotted Tracker 22767 | -3/Testing | Allies destroyed Tracker 22860 | -3/Testing | Spotted Striker 22860 | -3/Testing | Spotted Striker 22860 | -3/Testing | Spotted Executioner 22860 | -3/Testing | Spotted Investigator 22860 | -3/Testing | Entered Research 22860 | -2/Research | Accompanied by 20 allies 22860 | -2/Research | Evolved 2 slots: Utility x2 22875 | -2/Research | Identified exit to Quarantine 23110 | -2/Research | First assault squad dispatched 23152 | -2/Research | High security lockdown imminent 23232 | -2/Research | High security lockdown engaged 23422 | -2/Research | Spotted Striker 23424 | -2/Research | Allies destroyed Striker 23433 | -2/Research | Spotted Investigator 23450 | -2/Research | Allies destroyed Investigator 23520 | -2/Research | Spotted Executioner 23520 | -2/Research | Spotted Executioner 23522 | -2/Research | Allies destroyed Executioner 23524 | -2/Research | Allies destroyed Executioner 23533 | -2/Research | Spotted Executioner 23538 | -2/Research | Spotted Striker 23539 | -2/Research | Spotted Striker 23539 | -2/Research | Allies destroyed Striker 23542 | -2/Research | Allies destroyed Executioner 23544 | -2/Research | Allies destroyed Striker 23653 | -2/Research | Spotted Striker 23653 | -2/Research | Spotted Striker 23656 | -2/Research | Destroyed Striker 23660 | -2/Research | Allies destroyed Striker 23736 | -2/Research | Spotted Striker 23738 | -2/Research | Allies destroyed Striker 23748 | -2/Research | Intercept squad dispatched 23769 | -2/Research | Spotted Tracker 23772 | -2/Research | Spotted Tracker 23772 | -2/Research | Allies destroyed Tracker 23778 | -2/Research | Allies destroyed Tracker 23826 | -2/Research | Spotted Executioner 23831 | -2/Research | Sterilization system engaged 23831 | -2/Research | Non-combat units ordered to evacuate 23832 | -2/Research | Allies destroyed Executioner 23834 | -2/Research | Spotted Combat Programmer 23837 | -2/Research | Allies destroyed Combat Programmer 23852 | -2/Research | Destroyed 9 combat bots 23931 | -2/Research | Combat units ordered to evacuate 23972 | -2/Research | Destroyed as-06882 24131 | -2/Research | Ambient heat levels rising (+10) 24281 | -2/Research | Ambient heat levels rising (+10) 24431 | -2/Research | Ambient heat levels rising (+10) 24581 | -2/Research | Ambient heat levels rising (+10) 24731 | -2/Research | Ambient heat levels rising (+10) 24732 | -2/Research | Entered Quarantine 24732 | -2/Quarantine | Accompanied by 19 allies 24733 | -2/Quarantine | Detected hypermatrix surge 24733 | -2/Quarantine | Sensed 15 artifacts in vicinity 24738 | -2/Quarantine | Found Core Reset Matrix 24760 | -2/Quarantine | Found Subatomic Replicator 24779 | -2/Quarantine | Identified exit to Access 24781 | -2/Quarantine | Spotted Alpha 7 24804 | -2/Quarantine | Found Sigix Terminator 24982 | -2/Quarantine | First assault squad dispatched 24996 | -2/Quarantine | Met incapacitated Sigix Warrior 24996 | -2/Quarantine | Lockdown squad dispatched 24997 | -2/Quarantine | Acquired the access code to the Sigix quarantine chamber 24998 | -2/Quarantine | Unlocked Sigix quarantine chamber 25252 | -2/Quarantine | High security lockdown imminent 25332 | -2/Quarantine | High security lockdown engaged 25371 | -2/Quarantine | Garrison activated, responded to threat 25392 | -2/Quarantine | Intercept squad dispatched 25396 | -2/Quarantine | Spotted Tracker 25397 | -2/Quarantine | Allies destroyed Tracker 25433 | -2/Quarantine | Spotted Fortress 25474 | -2/Quarantine | Allies destroyed Fortress 25491 | -2/Quarantine | Spotted Investigator 25494 | -2/Quarantine | Destroyed Investigator 25521 | -2/Quarantine | Found Prototype Reactor 25521 | -2/Quarantine | Identified Vortex Chain Reactor 25651 | -2/Quarantine | Spotted Striker 25652 | -2/Quarantine | Spotted Investigator 25653 | -2/Quarantine | Allies destroyed Investigator 25656 | -2/Quarantine | Allies destroyed Striker 25673 | -2/Quarantine | Destroyed 8 combat bots 25713 | -2/Quarantine | Cryocooling Duct disabled 25728 | -2/Quarantine | Ambient heat levels rising (+20) 25880 | -2/Quarantine | Destroyed 12 combat bots 25895 | -2/Quarantine | Sterilization system engaged 25895 | -2/Quarantine | Non-combat units ordered to evacuate 25957 | -2/Quarantine | Destroyed as-96957 25995 | -2/Quarantine | Combat units ordered to evacuate 26013 | -2/Quarantine | Cryocooling Duct disabled 26143 | -2/Quarantine | Found Core Stripper 26195 | -2/Quarantine | Ambient heat levels rising (+10) 26215 | -2/Quarantine | Discovered new exit (range 6) 26218 | -2/Quarantine | Identified exit to Section 7 26345 | -2/Quarantine | Ambient heat levels rising (+10) 26495 | -2/Quarantine | Ambient heat levels rising (+10) 26645 | -2/Quarantine | Ambient heat levels rising (+10) 26795 | -2/Quarantine | Ambient heat levels rising (+10) 26909 | -2/Quarantine | Entered Section 7 26909 | -2/Section 7 | Accompanied by 18 allies 26910 | -2/Section 7 | Sensed 24 artifacts in vicinity 26975 | -2/Section 7 | Spotted S7 Guard 26980 | -2/Section 7 | Spotted S7 Guard 26986 | -2/Section 7 | Allies destroyed S7 Guard 26987 | -2/Section 7 | High security lockdown imminent 26987 | -2/Section 7 | Allies destroyed S7 Guard 26991 | -2/Section 7 | Found Core Membrane 26991 | -2/Section 7 | Installed Core Membrane, gained immunity to corruption 27002 | -2/Section 7 | Found Integrated Heat Negator 27002 | -2/Section 7 | Installed Integrated Heat Negator, increased core heat dissipation (+40) 27057 | -2/Section 7 | Spotted S7 Guard 27067 | -2/Section 7 | High security lockdown engaged 27082 | -2/Section 7 | Sensed 22 artifacts in vicinity 27088 | -2/Section 7 | Found Integrity Redistributor 27095 | -2/Section 7 | Spotted Alpha 7 27098 | -2/Section 7 | Spotted Alpha 7 27101 | -2/Section 7 | Allies destroyed Alpha 7 27104 | -2/Section 7 | Allies destroyed Alpha 7 27138 | -2/Section 7 | Found Integrated Singularity Reactor 27138 | -2/Section 7 | Installed Integrated Singularity Reactor, increased core energy generation (+20) 27209 | -2/Section 7 | Spotted Investigator 27213 | -2/Section 7 | Scanned by Researcher 27214 | -2/Section 7 | Allies destroyed Investigator 27234 | -2/Section 7 | Destroyed 7 combat bots 27283 | -2/Section 7 | Used Integrity Redistributor, redistributed integrity from core (-128) 27287 | -2/Section 7 | Intercept squad dispatched 27370 | -2/Section 7 | Spotted Executioner 27380 | -2/Section 7 | Allies destroyed Executioner 27392 | -2/Section 7 | Spotted Investigator 27392 | -2/Section 7 | Spotted Striker 27395 | -2/Section 7 | Allies destroyed Investigator 27400 | -2/Section 7 | Allies destroyed Striker 27421 | -2/Section 7 | Destroyed 11 combat bots 27444 | -2/Section 7 | Spotted B-99 Colossus 27448 | -2/Section 7 | Allies destroyed B-99 Colossus 27503 | -2/Section 7 | Found LRC Storage 27503 | -2/Section 7 | Installed LRC Storage, increased inventory capacity (+2) 27508 | -2/Section 7 | Found LRC Armor 27508 | -2/Section 7 | Installed LRC Armor, increased core integrity (+250) 27510 | -2/Section 7 | Found LRC Armor 27510 | -2/Section 7 | Installed LRC Armor, increased core integrity (+250) 27573 | -2/Section 7 | Spotted Executioner 27573 | -2/Section 7 | Spotted Executioner 27573 | -2/Section 7 | Spotted Executioner 27574 | -2/Section 7 | Allies destroyed Executioner 27575 | -2/Section 7 | Destroyed Executioner 27578 | -2/Section 7 | Allies destroyed Executioner 27580 | -2/Section 7 | Spotted Investigator 27582 | -2/Section 7 | Allies destroyed Investigator 27610 | -2/Section 7 | Intercept squad dispatched 27624 | -2/Section 7 | Spotted Tracker 27633 | -2/Section 7 | Allies destroyed Tracker 27658 | -2/Section 7 | Spotted Combat Programmer 27663 | -2/Section 7 | Allies destroyed Combat Programmer 27790 | -2/Section 7 | Spotted Executioner 27796 | -2/Section 7 | Allies destroyed Executioner 27855 | -2/Section 7 | Spotted Executioner 27857 | -2/Section 7 | Spotted Executioner 27859 | -2/Section 7 | Allies destroyed Striker 27860 | -2/Section 7 | Destroyed Executioner 27861 | -2/Section 7 | Allies destroyed Executioner 27863 | -2/Section 7 | Sterilization system engaged 27863 | -2/Section 7 | Non-combat units ordered to evacuate 27880 | -2/Section 7 | Allies destroyed Executioner 27881 | -2/Section 7 | Destroyed 9 combat bots 27881 | -2/Section 7 | Allies destroyed Executioner 27883 | -2/Section 7 | Destroyed Executioner 27883 | -2/Section 7 | Spotted Executioner 27884 | -2/Section 7 | Allies destroyed Striker 27885 | -2/Section 7 | Allies destroyed Executioner 27963 | -2/Section 7 | Combat units ordered to evacuate 28037 | -2/Section 7 | Spotted Striker 28037 | -2/Section 7 | Spotted Striker 28041 | -2/Section 7 | Allies destroyed Striker 28045 | -2/Section 7 | Allies destroyed Striker 28163 | -2/Section 7 | Ambient heat levels rising (+10) 28234 | -2/Section 7 | Spotted B-90 Cyclops 28296 | -2/Section 7 | Allies destroyed B-90 Cyclops 28313 | -2/Section 7 | Ambient heat levels rising (+10) 28316 | -2/Section 7 | Found Integrity Redistributor 28400 | -2/Section 7 | Found Integrated Reactor 28400 | -2/Section 7 | Installed Integrated Reactor, increased core energy generation (+10) 28416 | -2/Section 7 | Found Prototype Launcher 28416 | -2/Section 7 | Identified Point Singularity Launcher 28463 | -2/Section 7 | Ambient heat levels rising (+10) 28468 | -2/Section 7 | Discovered exit to Access (range 15) 28613 | -2/Section 7 | Ambient heat levels rising (+10) 28763 | -2/Section 7 | Ambient heat levels rising (+10) 28913 | -2/Section 7 | Ambient heat levels rising (+10) 28942 | -2/Section 7 | Entered Access 28942 | -1/Access | Accompanied by 18 allies 28942 | -1/Access | Evolved 2 slots: Propulsion x1, Utility x1 28976 | -1/Access | Found Fusion Bomb Launcher 29041 | -1/Access | Identified exit to Command 29081 | -1/Access | Fabricated Zero-point Reactor (x1) 29118 | -1/Access | Fabricated Zero-point Reactor (x1) 29158 | -1/Access | Fabricated Zero-point Reactor (x1) 29192 | -1/Access | First assault squad dispatched 29204 | -1/Access | High security lockdown imminent 29241 | -1/Access | Local fabrication network quarantined 29253 | -1/Access | Spotted B-99 Colossus 29267 | -1/Access | Allies destroyed B-99 Colossus 29284 | -1/Access | High security lockdown engaged 29519 | -1/Access | Spotted Striker 29524 | -1/Access | Allies destroyed Striker 29588 | -1/Access | Spotted Striker 29591 | -1/Access | Allies destroyed Striker 29657 | -1/Access | Spotted Executioner 29659 | -1/Access | Allies destroyed Executioner 29659 | -1/Access | Allies destroyed Striker 29738 | -1/Access | Spotted Executioner 29738 | -1/Access | Allies destroyed Executioner 29760 | -1/Access | Intercept squad dispatched 29778 | -1/Access | Spotted Tracker 29780 | -1/Access | Spotted Tracker 29781 | -1/Access | Allies destroyed Tracker 29782 | -1/Access | Allies destroyed Tracker 29789 | -1/Access | Allies destroyed Executioner 29790 | -1/Access | Allies destroyed Striker 29796 | -1/Access | Spotted Combat Programmer 29797 | -1/Access | Allies destroyed Combat Programmer 29852 | -1/Access | Spotted Striker 29852 | -1/Access | Spotted Executioner 29852 | -1/Access | Spotted Striker 29852 | -1/Access | Spotted Striker 29855 | -1/Access | Allies destroyed Striker 29857 | -1/Access | Allies destroyed Executioner 29858 | -1/Access | Allies destroyed Striker 29858 | -1/Access | Allies destroyed Striker 29862 | -1/Access | Spotted Combat Programmer 29871 | -1/Access | Allies destroyed Combat Programmer 29888 | -1/Access | Sterilization system engaged 29892 | -1/Access | Spotted Striker 29894 | -1/Access | Allies destroyed Striker 30107 | -1/Access | Spotted B-99 Colossus 30108 | -1/Access | Spotted B-99 Colossus 30120 | -1/Access | Allies destroyed B-99 Colossus 30121 | -1/Access | Allies destroyed B-99 Colossus 30188 | -1/Access | Ambient heat levels rising (+10) 30226 | -1/Access | Destroyed as-61357 30253 | -1/Access | Found Unknown Device 30311 | -1/Access | Destroyed as-42558 30313 | -1/Access | Found Unknown Device 30332 | -1/Access | Destroyed as-87097 30334 | -1/Access | Found Unknown Device 30338 | -1/Access | Ambient heat levels rising (+10) 30376 | -1/Access | Destroyed as-98669 30393 | -1/Access | Found Unknown Device 30457 | -1/Access | Entered Command 30457 | -1/Command | Accompanied by 12 allies 30488 | -1/Command | Disengaged cave seal 30488 | -1/Command | Assembled emerged from the dark tunnel 30604 | -1/Command | Disengaged cave seal 30607 | -1/Command | Phase Generator disabled 30725 | -1/Command | Build established: Wizard-Sprinter 30734 | -1/Command | First assault squad dispatched 30803 | -1/Command | High security lockdown imminent 30883 | -1/Command | High security lockdown engaged 30892 | -1/Command | Spotted B-99 Colossus 30905 | -1/Command | Allies destroyed B-99 Colossus 30917 | -1/Command | Fired Sigix Terminator 30917 | -1/Command | Destroyed Striker 30917 | -1/Command | MAIN.C activated Command garrisons 30921 | -1/Command | Spotted Striker 30938 | -1/Command | Destroyed 166 combat bots 30942 | -1/Command | Allies destroyed Striker 30943 | -1/Command | Spotted Striker 30945 | -1/Command | Allies destroyed Striker 31009 | -1/Command | Destroyed 8 combat bots 31096 | -1/Command | Destroyed 8 combat bots 31211 | -1/Command | Found Unknown Device 31266 | -1/Command | Used Subatomic Replicator to replicate Integrity Redistributor 31267 | -1/Command | Used Integrity Redistributor, redistributed integrity from core (-108) 31280 | -1/Command | Found Unknown Device 31367 | -1/Command | Build established: Alien-Mutant 33256 | -1/Command | Spotted Executioner 33283 | -1/Command | Spotted Striker 33287 | -1/Command | Allies destroyed Striker 33748 | -1/Command | Spotted Alpha 7 33760 | -1/Command | Allies destroyed Alpha 7 33772 | -1/Command | Spotted Combat Programmer 33773 | -1/Command | Spotted Combat Programmer 33774 | -1/Command | Spotted M Guard 33776 | -1/Command | Spotted M Guard 33777 | -1/Command | Destroyed as-48919 33783 | -1/Command | Allies destroyed Combat Programmer 33788 | -1/Command | Allies destroyed Combat Programmer 33798 | -1/Command | Destroyed M Guard 33813 | -1/Command | Destroyed M Guard 33813 | -1/Command | All MAIN.C guards destroyed 33840 | -1/Command | Found Prototype Device 33840 | -1/Command | Identified AEGIS Remote Shield 34359 | -1/Command | Met MAIN.C 34362 | -1/Command | 0b10 Conduit disabled 34375 | -1/Command | Allies destroyed MAIN.C Shell 34417 | -1/Command | Allies destroyed MAIN.C 34419 | -1/Command | Found Prototype Protection 34419 | -1/Command | Identified Exp. Powered Armor 34489 | -1/Command | Found Quantum Capacitor 34519 | -1/Command | Destroyed as-78040 34745 | -1/Command | Found Gamma Refractor 34747 | -1/Command | Found Prototype Protection 34747 | -1/Command | Identified Centrium Heavy Armor Plating 34761 | -1/Command | Found Zero-point Reactor 34763 | -1/Command | Found Zero-point Reactor 34773 | -1/Command | Found Prototype Device 34773 | -1/Command | Identified System Purifier 34776 | -1/Command | Found Prototype Device 34776 | -1/Command | Identified Exp. Cloaking Device 34779 | -1/Command | Found Prototype Device 34779 | -1/Command | Identified Exp. Phase Shifter 34917 | -1/Command | Found Prototype Device 34917 | -1/Command | Identified EM Dispersion Field 34961 | -1/Command | Found Prototype Device 34961 | -1/Command | Identified Exp. Actuator Array 35448 | -1/Command | Warped through subspace to slip node 35448 | -1/Command | Discovered new exit (range 4) 35766 | -1/Command | Entered Access_0 35766 | -1/Access_0 | Accompanied by 8 allies 35767 | -1/Access_0 | Sensed 3 artifacts in vicinity 35767 | -1/Access_0 | Met Architect 35768 | -1/Access_0 | Architect warped through subspace 35774 | -1/Access_0 | Allies destroyed A8 35802 | -1/Access_0 | Architect warped through subspace 35835 | -1/Access_0 | Architect warped through subspace 35845 | -1/Access_0 | Subspace Access Node disabled 35860 | -1/Access_0 | Architect warped through subspace 35882 | -1/Access_0 | Architect warped through subspace 35896 | -1/Access_0 | Architect warped through subspace 35909 | -1/Access_0 | Architect warped through subspace 35922 | -1/Access_0 | Architect warped through subspace 35931 | -1/Access_0 | Subspace Access Node disabled 35942 | -1/Access_0 | Spotted Enhanced Programmer 35943 | -1/Access_0 | Destroyed Enhanced Programmer 35956 | -1/Access_0 | Architect warped through subspace 35957 | -1/Access_0 | Spotted Enhanced Programmer 35964 | -1/Access_0 | Architect warped through subspace 35975 | -1/Access_0 | Allies destroyed Enhanced Programmer 35987 | -1/Access_0 | Architect warped through subspace 35990 | -1/Access_0 | Subspace Access Node disabled 36001 | -1/Access_0 | Subspace Access Node disabled 36010 | -1/Access_0 | Spotted Enhanced Programmer 36011 | -1/Access_0 | A6 warped into view 36020 | -1/Access_0 | Spotted Enhanced Programmer 36022 | -1/Access_0 | Triggered Gamma Refractor 36022 | -1/Access_0 | Singularity Gate disabled 36053 | -1/Access_0 | Allies destroyed Architect 36094 | -1/Access_0 | Allies destroyed A2 36096 | -1/Access_0 | Extracted Singularity Gate Test 138-C access codes from A2's data core 36098 | -1/Access_0 | Extracted unknown sensor trigger ID from Architect's data core 36099 | -1/Access_0 | Found Hpw. Transdimensional Reconstructor 36117 | -1/Access_0 | Spotted Enhanced Programmer 36124 | -1/Access_0 | Destroyed Enhanced Programmer 36158 | -1/Access_0 | Destroyed Enhanced Programmer 36254 | -1/Access_0 | Singularity Gate disabled 36305 | -1/Access_0 | Spotted Enhanced Programmer 36339 | -1/Access_0 | Spotted Enhanced Programmer 36339 | -1/Access_0 | Warped through subspace to slip node 36339 | -1/Access_0 | Discovered new exit (range 8) 36355 | -1/Access_0 | Used Integrity Redistributor, redistributed integrity from core (-141) 36643 | -1/Access_0 | Build established: Alien-Sprinter 37270 | *** | Destroyed 0B10! Last Messages --------------- 36290_ The unstable cave ceiling collapses. 36321_ Fusion Bomb intercepted. 36327_ The unstable cave ceiling collapses. 36338_ Penetrated by HV Slug. 36338_ HV Slug penetrates Earth. 36339_ Warped through subspace, drawn to slip node. 36339_ EXIT=FOUND 36347_ Discarded Adv. Salvage Targeting Computer. 36355_ Integrity redistributed from core (-141). 36791_ as-55090 released from Mobile Assembly Unit. 36841_ as-08020 released from Mobile Assembly Unit. 36891_ as-59551 released from Mobile Assembly Unit. 36941_ as-69254 released from Mobile Assembly Unit. 36991_ as-18728 released from Mobile Assembly Unit. 37041_ as-80959 released from Mobile Assembly Unit. 37091_ as-89711 released from Mobile Assembly Unit. 37141_ as-40131 released from Mobile Assembly Unit. 37191_ as-47909 released from Mobile Assembly Unit. 37241_ as-90338 released from Mobile Assembly Unit. [A new version of Cogmind is available, see F1 News page.] Map ----- +----------------------------------------------------+ | | | | | | | | | | | | | | | | | | | | | | | | | | | | | | | | | ?????????????????????????????????????????????????? | | ?????????????????????????????????????????????????? | | ?????????????????????????????????????????????????? | | ?????????????????????????????????????????????????? | | ?????????????????????????????????????????????????? | | ?????????????????????????????????????????????????? | | ????????????????????????###??????????????????????? | | ???????????????????????## ##?????????????????????? | | ???????????????????????# aa#?????????????????????? | | ???????????????????????#a@a#?????????????????????? | | ??????????????????????##aa #?????????????????????? | | ??????????????????????# aaa#?????????????????????? | | ??????????????????????# a##?????????????????????? | | ??????????????????????## #?????????????????????? | | ??????????????????????# #?????????????????????? | | ??????????????????????# ##?????????????????????? | | ??????????????????????# < #?????????????????????? | | ??????????????????????# ##?????????????????????? | | ??????????????????????## #??????????????????????? | | ???????????????????????####??????????????????????? | | ?????????????????????????????????????????????????? | | ?????????????????????????????????????????????????? | | ?????????????????????????????????????????????????? | | ?????????????????????????????????????????????????? | | ?????????????????????????????????????????????????? | | ?????????????????????????????????????????????????? | | ?????????????????????????????????????????????????? | | ?????????????????????????????????????????????????? | | ?????????????????????????????????????????????????? | | ?????????????????????????????????????????????????? | | ?????????????????????????????????????????????????? | | ?????????????????????????????????????????????????? | | ?????????????????????????????????????????????????? | | ?????????????????????????????????????????????????? | +----------------------------------------------------+ Best States ------------- Heat Dissipation 112 Energy Generation 112 Energy Capacity 1980 Matter Stores 521 Matter Capacity 800 Sight Range 16 Robot Scan Range 30 Terrain Scan Density 10 Power Amplification 20 Armor Coverage 1825 Resistance: TH 30 Resistance: EM 75 Utility Shielding 66 Point Defense Rating 240 Phase Shifting 20 Evasion (%) 76 Recoil Reduction 2 Salvage Targeting 3 Offensive Hacking 70 Defensive Hacking 25 Item Schematics ----------------- Zero-point Reactor | -1/Access | Hacked Robot Schematics ------------------ None Fabricated ------------ S-27 Virus | x4 | -7/Factory | Preloaded S-27 Virus | x4 | -7/Factory | Preloaded Cmb. Airjet | x2 | -6/Factory Cmb. Airjet | x2 | -6/Factory Combat Drone Bay | x1 | -6/Factory Adv. Signal Interpreter | x2 | -5/Factory Lrg. Storage Unit | x1 | -5/Factory Combat Drone Bay | x1 | -5/Factory Cmb. Linear Gravjet | x2 | -5/Factory | Preloaded Hcp. Storage Unit | x1 | -5/Factory Cmb. Linear Gravjet | x2 | -5/Factory | Preloaded Exp. Signal Interpreter | x1 | -5/Factory Adv. Salvage Targeting Computer | x1 | -5/Factory Spread Laser | x2 | -5/Factory Assault Drone Bay | x1 | -4/Factory Powered Armor | x2 | -4/Factory Assault Drone Bay | x1 | -4/Factory I-47 Archangel | x1 | -4/Armory I-47 Archangel | x1 | -4/Armory Zero-point Reactor | x1 | -1/Access Zero-point Reactor | x1 | -1/Access Zero-point Reactor | x1 | -1/Access Alien Tech Used ----------------- Integrated Reactor Transdimensional Reconstructor Core Reset Matrix Integrated Dissipator Core Membrane Integrated Heat Negator Integrated Singularity Reactor Integrity Redistributor LRC Storage LRC Armor Core Stripper Sigix Terminator Subatomic Replicator High-powered Transdimensional Reconstructor Achievements -------------- Decrypted! Launcher Specialist Challenges ------------ None Game ------ Seed FactoryInsulationRailgun Manual? 0 Play Time 10:51:27 Cumulative 367.7 hours Start 2020.11.01 @ 19:59:35 End 2020.11.05 @ 16:35:03 Sessions 5 Manual Loads 0 Difficulty Rogue Special Mode None Game No. 197 Rogue 197 Adventurer 0 Explorer 0 Win Type 3 Total 13 Types 7/1/0/3/0/1/1/0/0 Lore% 87 Gallery% 91 Achievement% 79 Wizard Run 0 Options --------- ASCII 0 Keyboard 1 Movement Numpad Keybinds 0 Fullscreen 2 Font 18/SmallcapsGlow Map View 76x50 Tactical HUD 1 Map Filters NONE Filters NONE Steam X RUN: ac507427-93dc-449b-8d7a-78a5ff9b5fba